Workbook

Sheet ISR PROVISIONALES
B1: MetodoPago | C1: (Varios elementos)
B3: Etiquetas de fila | C3: Suma de SubTotal | D3: Ing Acum | E3: Ded Aut | F3: Ded Acum | G3: Base Grav | H3: ISR PP | I3: ISR RET | J3: ISR X PAG
A4: ENERO | B4: 01 | C4: 911,650.00 | D4: =GETPIVOTDATA("SubTotal",$B$3,"Num Mes","01") -> 911,650.00 | E4: 68,212.50 | F4: =SUM($E$4:E4) -> 68,212.50 | G4: =D4-F4 -> 843,437.50 | H4: =(G4-VLOOKUP(G4,INDIRECT(A4),1))*VLOOKUP(G4,INDIRECT(A4),4)+VLOOKUP(G4,INDIRECT(A4),4) -> 193,160.97 | I4: =D4*0.1 -> 91,165.00 | J4: =IF(H4>I4,H4-I4,0) -> 101,995.97
A5: FEBRERO | B5: 02 | C5: 652,250.00 | D5: =GETPIVOTDATA("SubTotal",$B$3,"Num Mes","02")+D4 -> 1,563,900.00 | E5: 79,855.00 | F5: =SUM($E$4:E5) -> 148,067.50 | G5: =D5-F5 -> 1,415,832.50 | H5: =(G5-VLOOKUP(G5,INDIRECT(A5),1))*VLOOKUP(G5,INDIRECT(A5),4)+VLOOKUP(G5,INDIRECT(A5),4) -> 291,456.72 | I5: =D5*0.1 -> 156,390.00 | J5: =IF(H5>I5,H5-I5,0) -> 135,066.72
A6: MARZO | B6: 03 | C6: 690,018.64 | D6: =GETPIVOTDATA("SubTotal",$B$3,"Num Mes","03")+D5 -> 2,253,918.64 | E6: 69,998.00 | F6: =SUM($E$4:E6) -> 218,065.50 | G6: 2,035,853.14 | H6: 406,421.45 | I6: =D6*0.1 -> 225,391.86 | J6: =IF(H6>I6,H6-I6,0) -> 181,029.58
A7: ABRIL | B7: 04 | C7: 1,063,984.32 | D7: =GETPIVOTDATA("SubTotal",$B$3,"Num Mes","04")+D6 -> 3,317,902.96 | E7: 85,710.00 | F7: =SUM($E$4:E7) -> 303,775.50 | G7: 3,014,127.46 | H7: 646,774.96 | I7: 331,790.30 | J7: 314,984.66
A8: MAYO | B8: 05 | C8: 671,134.32 | D8: =GETPIVOTDATA("SubTotal",$B$3,"Num Mes","05")+D7 -> 3,989,037.28 | E8: 97,855.00 | F8: =SUM($E$4:E8) -> 401,630.50 | G8: 3,587,406.78 | H8: 745,380.22 | I8: 398,903.73 | J8: 346,476.49
A9: JUNIO | B9: 06 | C9: 671,134.32 | D9: =GETPIVOTDATA("SubTotal",$B$3,"Num Mes","06")+D8 -> 4,660,171.60 | E9: 99,998.00 | F9: =SUM($E$4:E9) -> 501,628.50 | G9: 4,158,543.10 | H9: 843,235.43 | I9: 466,017.16 | J9: 377,218.27
A10: JULIO | B10: 07 | C10: 671,134.32 | D10: =GETPIVOTDATA("SubTotal",$B$3,"Num Mes","07")+D9 -> 5,331,305.92 | E10: 105,712.00 | F10: =SUM($E$4:E10) -> 607,340.50 | G10: 4,723,965.42 | H10: 939,090.74 | I10: 533,130.59 | J10: 405,960.15
A11: AGOSTO | B11: 08 | C11: 671,134.32 | D11: =GETPIVOTDATA("SubTotal",$B$3,"Num Mes","08")+D10 -> 6,002,440.24 | E11: 107,497.50 | F11: =SUM($E$4:E11) -> 714,838.00 | G11: 5,287,602.24 | H11: 1,034,321.13 | I11: 600,244.02 | J11: 434,077.11
A12: SEPTIEMBRE | B12: 09 | C12: 671,134.32 | D12: =GETPIVOTDATA("SubTotal",$B$3,"Num Mes","09")+D11 -> 6,673,574.56 | E12: 89,855.00 | F12: =SUM($E$4:E12) -> 804,693.00 | G12: 5,868,881.56 | H12: 1,135,726.39 | I12: 667,357.46 | J12: 468,368.94
A13: OCTUBRE | B13: 10 | C13: 671,134.32 | D13: =GETPIVOTDATA("SubTotal",$B$3,"Num Mes","10")+D12 -> 7,344,708.88 | E13: 97,855.00 | F13: =SUM($E$4:E13) -> 902,548.00 | G13: 6,442,160.88 | H13: 1,234,331.65 | I13: 734,470.89 | J13: 499,860.77
A14: NOVIEMBRE | B14: 11 | C14: 671,134.32 | D14: =GETPIVOTDATA("SubTotal",$B$3,"Num Mes","11")+D13 -> 8,015,843.20 | E14: 116,497.50 | F14: =SUM($E$4:E14) -> 1,019,045.50 | G14: 6,996,797.70 | H14: 1,326,412.04 | I14: 801,584.32 | J14: 524,827.72
A15: DICIEMBRE | B15: 12 | C15: 392,850.00 | D15: =GETPIVOTDATA("SubTotal",$B$3,"Num Mes","12")+D14 -> 8,408,693.20 | E15: 104,610.00 | F15: =SUM($E$4:E15) -> 1,123,655.50 | G15: 7,285,037.70 | H15: 1,325,253.54 | I15: 840,869.32 | J15: 484,384.22
B16: Total general | C16: 8,408,693.20 | E16: =SUM(E4:E15) -> 1,123,655.50
A20: INGRESOS ANUALES | B20: =GETPIVOTDATA("SubTotal",$B$3) -> 8,408,693.20
A21: (-) DEDUCC AUT | B21: =E16 -> 1,123,655.50
A22: (=) UTILIDAD FISCAL | B22: =B20-B21 -> 7,285,037.70
A23: (-) DEDUCC PERSONALES | B23: =IF(B20*15%>96.22*30.4*12*3,96.22*30.4*12*3,B20*15%) -> 105,303.17
A24: (=) BASE GRAVABLE | B24: =B22-B23 -> 7,179,734.53
A25: (=) ISR ANUAL | B25: =(B24-VLOOKUP(B24,ANUAL2022,1))*VLOOKUP(B24,ANUAL2022,4)+VLOOKUP(B24,ANUAL2022,3) -> 2,385,617.29
A26: (-) RETENCION ISR | B26: =I15 -> 840,869.32
A27: (-) PAGOS PROVS EFECT | B27: 0
A28: (=) ISR X PAGAR | B28: =B26-B27 -> 840,869.32

Sheet XML ENE-DIC-2022 CASO
D3: COMPROBANTE | L3: EMISOR | O3: RECEPTOR | R3: UUID | T3: TIPORELACION | U3: CFDIRELACIONADO | W3: CONCEPTOS | AD3: IMPUESTOS | AG3: IMPUESTOS RETENIDOS | AJ3: CFDIPAGO | AL3: CFDIPDOCTORELACIONADO
A4: Mes | B4: Num Mes | C4: Ruta de Acceso a XML | D4: Fecha | E4: MetodoPago | F4: Serie | G4: Folio | H4: LugarExpedicion | I4: TipoDeComprobante | J4: Total | K4: SubTotal | L4: RegimenFiscal | M4: Rfc | N4: Nombre | O4: Nombre | P4: Rfc | Q4: UsoCFDI | R4: UUID | S4: COINC EGR Vs ING | T4: TipoRelacion | U4: UUID | V4: COINC ING Vs EGR | W4: Importe | X4: Cantidad | Y4: ValorUnitario | Z4: ClaveProdServ | AA4: Descripcion | AB4: Unidad | AC4: ClaveUnidad | AD4: Importe | AE4: TasaOCuota | AF4: Impuesto | AG4: Importe | AH4: TasaOCuota | AI4: Impuesto | AJ4: Monto | AK4: FechaPago | AL4: NumParcialidad | AM4: ImpSaldoAnt | AN4: ImpPagado | AO4: ImpSaldoInsoluto | AP4: IdDocumento | AQ4: Catalogo Ingresos
A5: ENERO | B5: =MID(D5,6,2) -> 01 | C5: D:\RTB\USB-Verde-Plata\DeclaracionAnual-PF-2022\CaFiCon\CasoPractico-PP-ActProf-2022\XML-2022\HAHL5702271P2-L194-E4DA75FC-64BC-49A4-864A-FE4D7F56CE1E.xml | D5: =COMPROBANTE($C5,D$4) -> 2022-01-03T14:10:56 | E5: PPD | F5: L | G5: 194 | H5: 01000 | I5: I | J5: =VALUE(COMPROBANTE($C5,J$4)) -> 247,294.58 | K5: 259,400.00 | L5: 612 | M5: HEHL800510ABC | N5: LIDIA HERNANDEZ HUERTA | O5: =RECEPTOR($C5,O$4) -> BANCO MERCANTIL DEL NORTE S.A. INSTITUCION DE BANCA MULTIPLE G.F.B | P5: BMN930209927 | Q5: G03 | R5: =UUID($C5,R$4) -> e4da75fc-64bc-49a4-864a-fe4d7f56ce1e | S5: =IFERROR(MATCH(U5,$R$5:$R$5,0)+4,"") ->  | T5: =TIPORELACION($C5,T$4) -> 0 | U5: =CFDIRELACIONADO($C5,U$4) -> 0 | V5: =IFERROR(MATCH(R5,$U$5:$U$5,0)+4,"") ->  | W5: =VALUE(CONCEPTOS($C5,W$4)) -> 259,400.00 | X5: =CONCEPTOS($C5,X$4) -> 1.000000 | Y5: =VALUE(CONCEPTOS($C5,Y$4)) -> 259,400.00 | AA5: HONORARIOS DE ENERO DEL 2022. | AB5: =CONCEPTOS($C5,AB$4) -> NO APLICA | AC5: E48 | AD5: =VALUE(IMPUESTOS($C5,AD$4)) -> 41,504.00 | AE5: =IMPUESTOS($C5,AE$4) -> 0.160000 | AF5: 002 | AG5: =K5*0.1 -> 25,940.00 | AH5: 0.10 | AI5: 001 | AJ5: =VALUE(CFDIPAGO($C5,AJ$4)) -> 0 | AK5: =CFDIPAGO($C5,AK$4) -> 0 | AL5: =CFDIPDOCTORELACIONADO($C5,AL$4) -> 0 | AM5: =VALUE(CFDIPDOCTORELACIONADO($C5,AM$4)) -> 0 | AN5: 0 | AO5: 0 | AP5: =CFDIPDOCTORELACIONADO($C5,AP$4) -> 0 | AQ5: Servicios profesionales (derechos de autor)
A6: ENERO | B6: 01 | C6: D:\RTB\USB-Verde-Plata\DeclaracionAnual-PF-2022\CaFiCon\CasoPractico-PP-ActProf-2022\XML-2022\HAHL5702271P2-L195-0E6D58E0-A7DD-4A2A-BC4F-60C585E145D8.xml | D6: 2022-01-07T12:39:32 | E6: PUE | F6: L | G6: 195 | H6: 01000 | I6: I | J6: 374,516.87 | K6: 392,850.00 | L6: 612 | M6: HEHL800510ABC | N6: LIDIA HERNANDEZ HUERTA | O6: COMERCIAL IMPORTADORA, S. DE R.L. DE C.V. | P6: CIM441020BN3 | Q6: G03 | R6: 0e6d58e0-a7dd-4a2a-bc4f-60c585e145d8 | T6: 0 | U6: 0 | W6: 392,850.00 | X6: 1.000000 | Y6: 392,850.00 | AA6: HONORARIOS DE ENERO 2022, | AB6: NO APLICA | AC6: E48 | AD6: 62,856.00 | AE6: 0.160000 | AF6: 002 | AG6: =K6*0.1 -> 39,285.00 | AH6: 0.10 | AI6: 001 | AJ6: 0 | AK6: 0 | AL6: 0 | AM6: 0 | AN6: 0 | AO6: 0 | AP6: 0 | AQ6: Servicios profesionales (honorarios)
A7: ENERO | B7: 01 | C7: D:\RTB\USB-Verde-Plata\DeclaracionAnual-PF-2022\CaFiCon\CasoPractico-PP-ActProf-2022\XML-2022\HAHL5702271P2-L196-038B0952-A4AC-425E-91C0-9D1101860B75.xml | D7: 2022-01-19T12:17:20 | E7: PPD | F7: L | G7: 196 | H7: 01000 | I7: I | J7: 247,294.58 | K7: 259,400.00 | L7: 612 | M7: HEHL800510ABC | N7: LIDIA HERNANDEZ HUERTA | O7: BANCO MERCANTIL DEL NORTE S.A. INSTITUCION DE BANCA MULTIPLE G.F.B | P7: BMN930209927 | Q7: G03 | R7: 038b0952-a4ac-425e-91c0-9d1101860b75 | T7: 0 | U7: 0 | W7: 259,400.00 | X7: 1.000000 | Y7: 259,400.00 | AA7: HONORARIOS DE FEBRERO DEL 2022. | AB7: NO APLICA | AC7: E48 | AD7: 41,504.00 | AE7: 0.160000 | AF7: 002 | AG7: =K7*0.1 -> 25,940.00 | AH7: 0.10 | AI7: 001 | AJ7: 0 | AK7: 0 | AL7: 0 | AM7: 0 | AN7: 0 | AO7: 0 | AP7: 0 | AQ7: Servicios profesionales (honorarios)
A8: FEBRERO | B8: 02 | C8: D:\RTB\USB-Verde-Plata\DeclaracionAnual-PF-2022\CaFiCon\CasoPractico-PP-ActProf-2022\XML-2022\HAHL5702271P2-L197-34DF2AD6-7D60-4A16-AB37-2059A078C0CA.xml | D8: 2022-02-10T15:40:10 | E8: PUE | F8: L | G8: 197 | H8: 01000 | I8: I | J8: 374,516.87 | K8: 392,850.00 | L8: 612 | M8: HEHL800510ABC | N8: LIDIA HERNANDEZ HUERTA | O8: COMERCIAL IMPORTADORA, S. DE R.L. DE C.V. | P8: CIM441020BN3 | Q8: G03 | R8: 34df2ad6-7d60-4a16-ab37-2059a078c0ca | T8: 0 | U8: 0 | W8: 392,850.00 | X8: 1.000000 | Y8: 392,850.00 | AA8: HONORARIOS DE FEBRERO 2022, | AB8: NO APLICA | AC8: E48 | AD8: 62,856.00 | AE8: 0.160000 | AF8: 002 | AG8: =K8*0.1 -> 39,285.00 | AH8: 0.10 | AI8: 001 | AJ8: 0 | AK8: 0 | AL8: 0 | AM8: 0 | AN8: 0 | AO8: 0 | AP8: 0 | AQ8: Servicios profesionales (honorarios)
A9: FEBRERO | B9: 02 | C9: D:\RTB\USB-Verde-Plata\DeclaracionAnual-PF-2022\CaFiCon\CasoPractico-PP-ActProf-2022\XML-2022\HAHL5702271P2-L198-B2FB4B02-4FA5-4B3F-B95F-29A16FF47634.xml | D9: 2022-02-16T12:28:05 | E9: PPD | F9: L | G9: 198 | H9: 01000 | I9: I | J9: 247,294.58 | K9: 259,400.00 | L9: 612 | M9: HEHL800510ABC | N9: LIDIA HERNANDEZ HUERTA | O9: BANCO MERCANTIL DEL NORTE S.A. INSTITUCION DE BANCA MULTIPLE G.F.B | P9: BMN930209927 | Q9: G03 | R9: b2fb4b02-4fa5-4b3f-b95f-29a16ff47634 | T9: 0 | U9: 0 | W9: 259,400.00 | X9: 1.000000 | Y9: 259,400.00 | AA9: A CUENTA DE HONORARIOS DE MARZO DEL 2022. | AB9: NO APLICA | AC9: E48 | AD9: 41,504.00 | AE9: 0.160000 | AF9: 002 | AG9: =K9*0.1 -> 25,940.00 | AH9: 0.10 | AI9: 001 | AJ9: 0 | AK9: 0 | AL9: 0 | AM9: 0 | AN9: 0 | AO9: 0 | AP9: 0 | AQ9: Servicios profesionales (honorarios)
A10: FEBRERO | B10: 02 | C10: D:\RTB\USB-Verde-Plata\DeclaracionAnual-PF-2022\CaFiCon\CasoPractico-PP-ActProf-2022\XML-2022\HAHL5702271P2-L199-D62FF82E-E1BA-47E3-A5F9-8229DFF5EBB3.xml | D10: 2022-02-21T16:33:23 | F10: L | G10: 199 | H10: 01000 | I10: P | J10: 0 | K10: 0 | L10: 612 | M10: HEHL800510ABC | N10: LIDIA HERNANDEZ HUERTA | O10: BANCO MERCANTIL DEL NORTE S.A. INSTITUCION DE BANCA MULTIPLE G.F.B | P10: BMN930209927 | Q10: P01 | R10: d62ff82e-e1ba-47e3-a5f9-8229dff5ebb3 | S10: 5 | T10: 04 | U10: e4da75fc-64bc-49a4-864a-fe4d7f56ce1e | W10: 0 | X10: 1 | Y10: 0 | AA10: Pago | AC10: ACT | AD10: 0 | AE10: 0 | AF10: 0 | AJ10: 247,294.58 | AK10: 2022-02-14T12:00:00 | AL10: 1 | AM10: 247,294.58 | AN10: 247,294.58 | AO10: 0 | AP10: e4da75fc-64bc-49a4-864a-fe4d7f56ce1e
A11: FEBRERO | B11: 02 | C11: D:\RTB\USB-Verde-Plata\DeclaracionAnual-PF-2022\CaFiCon\CasoPractico-PP-ActProf-2022\XML-2022\HAHL5702271P2-L200-147CB602-5B5E-415C-8162-ED054A0EAEDC.xml | D11: 2022-02-27T19:10:24 | F11: L | G11: 200 | H11: 01000 | I11: P | J11: 0 | K11: 0 | L11: 612 | M11: HEHL800510ABC | N11: LIDIA HERNANDEZ HUERTA | O11: BANCO MERCANTIL DEL NORTE S.A. INSTITUCION DE BANCA MULTIPLE G.F.B | P11: BMN930209927 | Q11: P01 | R11: 147cb602-5b5e-415c-8162-ed054a0eaedc | T11: 04 | U11: 038b0952-a4ac-425e-91c0-9d1101860b75 | W11: 0 | X11: 1 | Y11: 0 | AA11: Pago | AC11: ACT | AD11: 0 | AE11: 0 | AF11: 0 | AJ11: 247,294.58 | AK11: 2022-02-25T12:00:00 | AL11: 1 | AM11: 247,294.58 | AN11: 247,294.58 | AO11: 0 | AP11: 038b0952-a4ac-425e-91c0-9d1101860b75
A12: MARZO | B12: 03 | C12: D:\RTB\USB-Verde-Plata\DeclaracionAnual-PF-2022\CaFiCon\CasoPractico-PP-ActProf-2022\XML-2022\HAHL5702271P2-L201-EC264974-B610-48AC-B3BC-48C93B7A1251.xml | D12: 2022-03-09T18:41:52 | E12: PUE | F12: L | G12: 201 | H12: 01000 | I12: I | J12: 374,516.87 | K12: 392,850.00 | L12: 612 | M12: HEHL800510ABC | N12: LIDIA HERNANDEZ HUERTA | O12: COMERCIAL IMPORTADORA, S. DE R.L. DE C.V. | P12: CIM441020BN3 | Q12: G03 | R12: ec264974-b610-48ac-b3bc-48c93b7a1251 | T12: 0 | U12: 0 | W12: 392,850.00 | X12: 1.000000 | Y12: 392,850.00 | AA12: HONORARIOS DE MARZO 2022, | AB12: NO APLICA | AC12: E48 | AD12: 62,856.00 | AE12: 0.160000 | AF12: 002 | AG12: =K12*0.1 -> 39,285.00 | AH12: 0.10 | AI12: 001 | AJ12: 0 | AK12: 0 | AL12: 0 | AM12: 0 | AN12: 0 | AO12: 0 | AP12: 0 | AQ12: Servicios profesionales (honorarios)
A13: MARZO | B13: 03 | C13: D:\RTB\USB-Verde-Plata\DeclaracionAnual-PF-2022\CaFiCon\CasoPractico-PP-ActProf-2022\XML-2022\HAHL5702271P2-L202-05AC2E9D-1FFE-4944-9E8A-B123CDD9A708.xml | D13: 2022-03-16T10:59:08 | F13: L | G13: 202 | H13: 01000 | I13: P | J13: 0 | K13: 0 | L13: 612 | M13: HEHL800510ABC | N13: LIDIA HERNANDEZ HUERTA | O13: BANCO MERCANTIL DEL NORTE S.A. INSTITUCION DE BANCA MULTIPLE G.F.B | P13: BMN930209927 | Q13: P01 | R13: 05ac2e9d-1ffe-4944-9e8a-b123cdd9a708 | T13: 04 | U13: b2fb4b02-4fa5-4b3f-b95f-29a16ff47634 | W13: 0 | X13: 1 | Y13: 0 | AA13: Pago | AC13: ACT | AD13: 0 | AE13: 0 | AF13: 0 | AJ13: 247,294.58 | AK13: 2022-03-11T12:00:00 | AL13: 1 | AM13: 247,294.58 | AN13: 247,294.58 | AO13: 0 | AP13: b2fb4b02-4fa5-4b3f-b95f-29a16ff47634
A14: MARZO | B14: 03 | C14: D:\RTB\USB-Verde-Plata\DeclaracionAnual-PF-2022\CaFiCon\CasoPractico-PP-ActProf-2022\XML-2022\HAHL5702271P2-L203-93981F4D-D413-4304-8F78-5479DCA74B13.xml | D14: 2022-03-16T11:06:49 | E14: PPD | F14: L | G14: 203 | H14: 01000 | I14: I | J14: 247,294.58 | K14: 259,400.00 | L14: 612 | M14: HEHL800510ABC | N14: LIDIA HERNANDEZ HUERTA | O14: BANCO MERCANTIL DEL NORTE S.A. INSTITUCION DE BANCA MULTIPLE G.F.B | P14: BMN930209927 | Q14: G03 | R14: 93981f4d-d413-4304-8f78-5479dca74b13 | T14: 0 | U14: 0 | W14: 259,400.00 | X14: 1.000000 | Y14: 259,400.00 | AA14: A CUENTA DE HONORARIOS DE ABRIL DEL 2022. | AB14: NO APLICA | AC14: E48 | AD14: 41,504.00 | AE14: 0.160000 | AF14: 002 | AG14: =K14*0.1 -> 25,940.00 | AH14: 0.10 | AI14: 001 | AJ14: 0 | AK14: 0 | AL14: 0 | AM14: 0 | AN14: 0 | AO14: 0 | AP14: 0 | AQ14: Servicios profesionales (honorarios)
A15: MARZO | B15: 03 | C15: D:\RTB\USB-Verde-Plata\DeclaracionAnual-PF-2022\CaFiCon\CasoPractico-PP-ActProf-2022\XML-2022\HAHL5702271P2-L204-11E6AB0D-DE96-46E0-BB2E-C1B2B6702C31.xml | D15: =COMPROBANTE($C15,D$4) -> 2022-03-23T13:57:20 | E15: PPD | F15: L | G15: 204 | H15: 01000 | I15: I | J15: 18,003.05 | K15: 18,884.32 | L15: 612 | M15: HEHL800510ABC | N15: LIDIA HERNANDEZ HUERTA | O15: BANCO MERCANTIL DEL NORTE S.A. INSTITUCION DE BANCA MULTIPLE G.F.B | P15: BMN930209927 | Q15: G03 | R15: 11e6ab0d-de96-46e0-bb2e-c1b2b6702c31 | T15: 0 | U15: 0 | W15: 18,884.32 | X15: 1.000000 | Y15: 18,884.32 | AA15: COMPLEMENTO DE HONORARIOS DE MARZO DEL 2022. | AB15: NO APLICA | AC15: E48 | AD15: 3,021.49 | AE15: 0.160000 | AF15: 002 | AG15: =K15*0.1 -> 1,888.43 | AH15: 0.10 | AI15: 001 | AJ15: 0 | AK15: 0 | AL15: 0 | AM15: 0 | AN15: 0 | AO15: 0 | AP15: 0 | AQ15: Servicios profesionales (honorarios)
A16: MARZO | B16: 03 | C16: D:\RTB\USB-Verde-Plata\DeclaracionAnual-PF-2022\CaFiCon\CasoPractico-PP-ActProf-2022\XML-2022\HAHL5702271P2-L205-B49E6F80-0727-4AD0-B987-0B45F2D64A16.xml | D16: 2022-03-23T16:02:38 | E16: PPD | F16: L | G16: 205 | H16: 01000 | I16: I | J16: 18,003.05 | K16: 18,884.32 | L16: 612 | M16: HEHL800510ABC | N16: LIDIA HERNANDEZ HUERTA | O16: BANCO MERCANTIL DEL NORTE S.A. INSTITUCION DE BANCA MULTIPLE G.F.B | P16: BMN930209927 | Q16: G03 | R16: b49e6f80-0727-4ad0-b987-0b45f2d64a16 | T16: 0 | U16: 0 | W16: 18,884.32 | X16: 1.000000 | Y16: 18,884.32 | AA16: COMPLEMENTO DE HONORARIOS DE ABRIL DEL 2022. | AB16: NO APLICA | AC16: E48 | AD16: 3,021.49 | AE16: 0.160000 | AF16: 002 | AG16: =K16*0.1 -> 1,888.43 | AH16: 0.10 | AI16: 001 | AJ16: 0 | AK16: 0 | AL16: 0 | AM16: 0 | AN16: 0 | AO16: 0 | AP16: 0 | AQ16: Servicios profesionales (honorarios)
A17: ABRIL | B17: 04 | C17: D:\RTB\USB-Verde-Plata\DeclaracionAnual-PF-2022\CaFiCon\CasoPractico-PP-ActProf-2022\XML-2022\HAHL5702271P2-L206-7B13F21E-A16E-49F9-B207-8E6D1E9504A9.xml | D17: 2022-04-08T12:52:44 | E17: PUE | F17: L | G17: 206 | H17: 01000 | I17: I | J17: 374,516.87 | K17: 392,850.00 | L17: 612 | M17: HEHL800510ABC | N17: LIDIA HERNANDEZ HUERTA | O17: COMERCIAL IMPORTADORA, S. DE R.L. DE C.V. | P17: CIM441020BN3 | Q17: G03 | R17: 7b13f21e-a16e-49f9-b207-8e6d1e9504a9 | T17: 0 | U17: 0 | W17: 392,850.00 | X17: 1.000000 | Y17: 392,850.00 | AA17: HONORARIOS DE ABRIL 2022, | AB17: NO APLICA | AC17: E48 | AD17: 62,856.00 | AE17: 0.160000 | AF17: 002 | AG17: =K17*0.1 -> 39,285.00 | AH17: 0.10 | AI17: 001 | AJ17: 0 | AK17: 0 | AL17: 0 | AM17: 0 | AN17: 0 | AO17: 0 | AP17: 0 | AQ17: Servicios profesionales (honorarios)
A18: ABRIL | B18: 04 | C18: D:\RTB\USB-Verde-Plata\DeclaracionAnual-PF-2022\CaFiCon\CasoPractico-PP-ActProf-2022\XML-2022\7B13F21E-A16E-49F9-B207-8E6D1E9504A9.xml | D18: 2022-04-08T12:52:44 | E18: PUE | F18: L | G18: 206 | H18: 01000 | I18: I | J18: 374,516.87 | K18: 392,850.00 | L18: 612 | M18: HEHL800510ABC | N18: LIDIA HERNANDEZ HUERTA | O18: COMERCIAL IMPORTADORA, S. DE R.L. DE C.V. | P18: CIM441020BN3 | Q18: G03 | R18: 7b13f21e-a16e-49f9-b207-8e6d1e9504a9 | T18: 0 | U18: 0 | W18: 392,850.00 | X18: 1.000000 | Y18: 392,850.00 | AA18: HONORARIOS DE ABRIL 2022, | AB18: NO APLICA | AC18: E48 | AD18: 62,856.00 | AE18: 0.160000 | AF18: 002 | AG18: =K18*0.1 -> 39,285.00 | AH18: 0.10 | AI18: 001 | AJ18: 0 | AK18: 0 | AL18: 0 | AM18: 0 | AN18: 0 | AO18: 0 | AP18: 0 | AQ18: Servicios profesionales (honorarios)
A19: ABRIL | B19: 04 | C19: D:\RTB\USB-Verde-Plata\DeclaracionAnual-PF-2022\CaFiCon\CasoPractico-PP-ActProf-2022\XML-2022\94F0AFDC-1677-4843-AFD8-A76C9D365643.xml | D19: 2022-04-20T14:11:30 | F19: L | G19: 208 | H19: 01000 | I19: P | J19: 0 | K19: 0 | L19: 612 | M19: HEHL800510ABC | N19: LIDIA HERNANDEZ HUERTA | O19: BANCO MERCANTIL DEL NORTE S.A. INSTITUCION DE BANCA MULTIPLE G.F.B | P19: BMN930209927 | Q19: P01 | R19: 94f0afdc-1677-4843-afd8-a76c9d365643 | T19: 04 | U19: b49e6f80-0727-4ad0-b987-0b45f2d64a16 | W19: 0 | X19: 1 | Y19: 0 | AA19: Pago | AC19: ACT | AD19: 0 | AE19: 0 | AF19: 0 | AJ19: 265,297.63 | AK19: 2022-04-12T12:00:00 | AL19: 1 | AM19: 18,003.05 | AN19: 18,003.05 | AO19: 0 | AP19: b49e6f80-0727-4ad0-b987-0b45f2d64a16
A20: ABRIL | B20: 04 | C20: D:\RTB\USB-Verde-Plata\DeclaracionAnual-PF-2022\CaFiCon\CasoPractico-PP-ActProf-2022\XML-2022\113ECC33-CC66-4798-9D5E-8DE4748F0C1B.xml | D20: 2022-04-20T14:01:19 | F20: L | G20: 207 | H20: 01000 | I20: P | J20: 0 | K20: 0 | L20: 612 | M20: HEHL800510ABC | N20: LIDIA HERNANDEZ HUERTA | O20: BANCO MERCANTIL DEL NORTE S.A. INSTITUCION DE BANCA MULTIPLE G.F.B | P20: BMN930209927 | Q20: P01 | R20: 113ecc33-cc66-4798-9d5e-8de4748f0c1b | T20: 04 | U20: 11e6ab0d-de96-46e0-bb2e-c1b2b6702c31 | W20: 0 | X20: 1 | Y20: 0 | AA20: Pago | AC20: ACT | AD20: 0 | AE20: 0 | AF20: 0 | AJ20: 18,003.05 | AK20: 2022-04-12T12:00:00 | AL20: 1 | AM20: 18,003.05 | AN20: 18,003.05 | AO20: 0 | AP20: 11e6ab0d-de96-46e0-bb2e-c1b2b6702c31
A21: ABRIL | B21: 04 | C21: D:\RTB\USB-Verde-Plata\DeclaracionAnual-PF-2022\CaFiCon\CasoPractico-PP-ActProf-2022\XML-2022\E17B9F09-4FB4-4487-9E62-638F69AD17C3.xml | D21: 2022-04-20T14:29:38 | E21: PPD | F21: L | G21: 209 | H21: 01000 | I21: I | J21: 265,297.63 | K21: 278,284.32 | L21: 612 | M21: HEHL800510ABC | N21: LIDIA HERNANDEZ HUERTA | O21: BANCO MERCANTIL DEL NORTE S.A. INSTITUCION DE BANCA MULTIPLE G.F.B | P21: BMN930209927 | Q21: G03 | R21: e17b9f09-4fb4-4487-9e62-638f69ad17c3 | T21: 0 | U21: 0 | W21: 278,284.32 | X21: 1.000000 | Y21: 278,284.32 | AA21: HONORARIOS DE MAYO DEL 2022. | AB21: NO APLICA | AC21: E48 | AD21: 44,525.49 | AE21: 0.160000 | AF21: 002 | AG21: =K21*0.1 -> 27,828.43 | AH21: 0.10 | AI21: 001 | AJ21: 0 | AK21: 0 | AL21: 0 | AM21: 0 | AN21: 0 | AO21: 0 | AP21: 0 | AQ21: Servicios profesionales (honorarios)
A22: MAYO | B22: 05 | C22: D:\RTB\USB-Verde-Plata\DeclaracionAnual-PF-2022\CaFiCon\CasoPractico-PP-ActProf-2022\XML-2022\HAHL5702271P2-L210-8A400DE6-A22F-4D3A-8CA2-6D379C1063BC.xml | D22: 2022-05-09T18:23:14 | E22: PUE | F22: L | G22: 210 | H22: 01000 | I22: I | J22: 374,516.87 | K22: 392,850.00 | L22: 612 | M22: HEHL800510ABC | N22: LIDIA HERNANDEZ HUERTA | O22: COMERCIAL IMPORTADORA S. DE R.L. DE C.V. | P22: CIM441020BN3 | Q22: G03 | R22: 8a400de6-a22f-4d3a-8ca2-6d379c1063bc | T22: 0 | U22: 0 | W22: 392,850.00 | X22: 1.000000 | Y22: 392,850.00 | AA22: HONORARIOS DE MAYO 2022, | AB22: NO APLICA | AC22: E48 | AD22: 62,856.00 | AE22: 0.160000 | AF22: 002 | AG22: =K22*0.1 -> 39,285.00 | AH22: 0.10 | AI22: 001 | AJ22: 0 | AK22: 0 | AL22: 0 | AM22: 0 | AN22: 0 | AO22: 0 | AP22: 0 | AQ22: Servicios profesionales (honorarios)
A23: MAYO | B23: 05 | C23: D:\RTB\USB-Verde-Plata\DeclaracionAnual-PF-2022\CaFiCon\CasoPractico-PP-ActProf-2022\XML-2022\HAHL5702271P2-L211-A72C16F2-0BC1-45C3-AFD5-4D2CB61C3132.xml | D23: 2022-05-17T11:06:39 | E23: PPD | F23: L | G23: 211 | H23: 01000 | I23: I | J23: 265,297.63 | K23: 278,284.32 | L23: 612 | M23: HEHL800510ABC | N23: LIDIA HERNANDEZ HUERTA | O23: BANCO MERCANTIL DEL NORTE S.A. INSTITUCION DE BANCA MULTIPLE G.F.B | P23: BMN930209927 | Q23: G03 | R23: a72c16f2-0bc1-45c3-afd5-4d2cb61c3132 | T23: 0 | U23: 0 | W23: 278,284.32 | X23: 1.000000 | Y23: 278,284.32 | AA23: HONORARIOS DE JUNIO DEL 2022. | AB23: NO APLICA | AC23: E48 | AD23: 44,525.49 | AE23: 0.160000 | AF23: 002 | AG23: =K23*0.1 -> 27,828.43 | AH23: 0.10 | AI23: 001 | AJ23: 0 | AK23: 0 | AL23: 0 | AM23: 0 | AN23: 0 | AO23: 0 | AP23: 0 | AQ23: Servicios profesionales (honorarios)
A24: MAYO | B24: 05 | C24: D:\RTB\USB-Verde-Plata\DeclaracionAnual-PF-2022\CaFiCon\CasoPractico-PP-ActProf-2022\XML-2022\HAHL5702271P2-L212-CANC. .xml | D24: 2022-05-18T11:36:40 | F24: L | G24: 212 | H24: 01000 | I24: P | J24: 0 | K24: 0 | L24: 612 | M24: HEHL800510ABC | N24: LIDIA HERNANDEZ HUERTA | O24: BANCO MERCANTIL DEL NORTE S.A. INSTITUCION DE BANCA MULTIPLE G.F.B | P24: BMN930209927 | Q24: P01 | R24: c8e468bf-515c-48f9-a91b-b60baaa872f7 | T24: 04 | U24: e17b9f09-4fb4-4487-9e62-638f69ad17c3 | W24: 0 | X24: 1 | Y24: 0 | AA24: Pago | AC24: ACT | AD24: 0 | AE24: 0 | AF24: 0 | AJ24: 265,297.63 | AK24: 2022-05-09T12:00:00 | AL24: 1 | AM24: 265,297.63 | AN24: 265,297.63 | AO24: 0 | AP24: e17b9f09-4fb4-4487-9e62-638f69ad17c3
A25: MAYO | B25: 05 | C25: D:\RTB\USB-Verde-Plata\DeclaracionAnual-PF-2022\CaFiCon\CasoPractico-PP-ActProf-2022\XML-2022\HAHL5702271P2-L213-D8561010-9331-4BD7-A550-F599FC56998C.xml | D25: =COMPROBANTE($C25,D$4) -> 2022-05-23T11:23:05 | F25: L | G25: 213 | H25: 01000 | I25: P | J25: =VALUE(COMPROBANTE($C25,J$4)) -> 0 | K25: 0 | L25: 612 | M25: HEHL800510ABC | N25: LIDIA HERNANDEZ HUERTA | O25: =RECEPTOR($C25,O$4) -> BANCO MERCANTIL DEL NORTE S.A. INSTITUCION DE BANCA MULTIPLE G.F.B | P25: BMN930209927 | Q25: P01 | R25: d8561010-9331-4bd7-a550-f599fc56998c | T25: 04 | U25: e17b9f09-4fb4-4487-9e62-638f69ad17c3 | W25: 0 | X25: 1 | Y25: 0 | AA25: Pago | AB25: =CONCEPTOS($C25,AB$4) ->  | AC25: ACT | AD25: 0 | AE25: =IMPUESTOS($C25,AE$4) -> 0 | AF25: 0 | AJ25: 265,297.63 | AK25: 2022-05-06T12:00:00 | AL25: 1 | AM25: =VALUE(CFDIPDOCTORELACIONADO($C25,AM$4)) -> 265,297.63 | AN25: 265,297.63 | AO25: 0 | AP25: e17b9f09-4fb4-4487-9e62-638f69ad17c3
A26: JUNIO | B26: 06 | C26: D:\RTB\USB-Verde-Plata\DeclaracionAnual-PF-2022\CaFiCon\CasoPractico-PP-ActProf-2022\XML-2022\HAHL5702271P2-L214-D6964E13-2CD1-4C9B-8F37-B91CA2AA5C6B.xml | D26: 2022-06-08T11:41:02 | E26: PUE | F26: L | G26: 214 | H26: 01000 | I26: I | J26: 374,516.87 | K26: 392,850.00 | L26: 612 | M26: HEHL800510ABC | N26: LIDIA HERNANDEZ HUERTA | O26: COMERCIAL IMPORTADORA, S. DE R.L. DE C.V. | P26: CIM441020BN3 | Q26: G03 | R26: d6964e13-2cd1-4c9b-8f37-b91ca2aa5c6b | T26: 0 | U26: 0 | W26: 392,850.00 | X26: 1.000000 | Y26: 392,850.00 | AA26: HONORARIOS DE JUNIO 2022, | AB26: NO APLICA | AC26: E48 | AD26: 62,856.00 | AE26: 0.160000 | AF26: 002 | AG26: =K26*0.1 -> 39,285.00 | AH26: 0.10 | AI26: 001 | AJ26: 0 | AK26: 0 | AL26: 0 | AM26: 0 | AN26: 0 | AO26: 0 | AP26: 0 | AQ26: Servicios profesionales (honorarios)
A27: JUNIO | B27: 06 | C27: D:\RTB\USB-Verde-Plata\DeclaracionAnual-PF-2022\CaFiCon\CasoPractico-PP-ActProf-2022\XML-2022\HAHL5702271P2-L215-7CBDB2E0-B16D-4BB9-B024-1E7E38B614DB.xml | D27: 2022-06-15T12:28:09 | F27: L | G27: 215 | H27: 01000 | I27: P | J27: 0 | K27: 0 | L27: 612 | M27: HEHL800510ABC | N27: LIDIA HERNANDEZ HUERTA | O27: BANCO MERCANTIL DEL NORTE S.A. INSTITUCION DE BANCA MULTIPLE G.F.B | P27: BMN930209927 | Q27: P01 | R27: 7cbdb2e0-b16d-4bb9-b024-1e7e38b614db | T27: 04 | U27: a72c16f2-0bc1-45c3-afd5-4d2cb61c3132 | W27: 0 | X27: 1 | Y27: 0 | AA27: Pago | AC27: ACT | AD27: 0 | AE27: 0 | AF27: 0 | AJ27: 265,297.63 | AK27: 2022-06-10T12:00:00 | AL27: 1 | AM27: 265,297.63 | AN27: 265,297.63 | AO27: 0 | AP27: a72c16f2-0bc1-45c3-afd5-4d2cb61c3132
A28: JUNIO | B28: 06 | C28: D:\RTB\USB-Verde-Plata\DeclaracionAnual-PF-2022\CaFiCon\CasoPractico-PP-ActProf-2022\XML-2022\HAHL5702271P2-L216-902C13FE-3094-4E4E-8606-6EF45FE613B6.xml | D28: 2022-06-15T12:35:10 | E28: PPD | F28: L | G28: 216 | H28: 01000 | I28: I | J28: 265,297.63 | K28: 278,284.32 | L28: 612 | M28: HEHL800510ABC | N28: LIDIA HERNANDEZ HUERTA | O28: BANCO MERCANTIL DEL NORTE S.A. INSTITUCION DE BANCA MULTIPLE G.F.B | P28: BMN930209927 | Q28: G03 | R28: 902c13fe-3094-4e4e-8606-6ef45fe613b6 | T28: 0 | U28: 0 | W28: 278,284.32 | X28: 1.000000 | Y28: 278,284.32 | AA28: HONORARIOS DE JULIO DEL 2022. | AB28: NO APLICA | AC28: E48 | AD28: 44,525.49 | AE28: 0.160000 | AF28: 002 | AG28: =K28*0.1 -> 27,828.43 | AH28: 0.10 | AI28: 001 | AJ28: 0 | AK28: 0 | AL28: 0 | AM28: 0 | AN28: 0 | AO28: 0 | AP28: 0 | AQ28: Servicios profesionales (honorarios)
A29: JULIO | B29: 07 | C29: D:\RTB\USB-Verde-Plata\DeclaracionAnual-PF-2022\CaFiCon\CasoPractico-PP-ActProf-2022\XML-2022\5D27FA6F-2C80-4497-8A93-AA88E858621E.xml | D29: 2022-07-06T12:35:24 | E29: PUE | F29: L | G29: 217 | H29: 01000 | I29: I | J29: 374,516.87 | K29: 392,850.00 | L29: 612 | M29: HEHL800510ABC | N29: LIDIA HERNANDEZ HUERTA | O29: COMERCIAL IMPORTADORA, S. DE R.L. DE C.V. | P29: CIM441020BN3 | Q29: G03 | R29: 5d27fa6f-2c80-4497-8a93-aa88e858621e | T29: 0 | U29: 0 | W29: 392,850.00 | X29: 1.000000 | Y29: 392,850.00 | AA29: HONORARIOS DE JULIO 2022, | AB29: NO APLICA | AC29: E48 | AD29: 62,856.00 | AE29: 0.160000 | AF29: 002 | AG29: =K29*0.1 -> 39,285.00 | AH29: 0.10 | AI29: 001 | AJ29: 0 | AK29: 0 | AL29: 0 | AM29: 0 | AN29: 0 | AO29: 0 | AP29: 0 | AQ29: Servicios profesionales (honorarios)
A30: JULIO | B30: 07 | C30: D:\RTB\USB-Verde-Plata\DeclaracionAnual-PF-2022\CaFiCon\CasoPractico-PP-ActProf-2022\XML-2022\9ABB9958-68A2-4AD6-9EE6-C8119A65B9D0.xml | D30: 2022-07-12T16:13:01 | F30: L | G30: 218 | H30: 01000 | I30: P | J30: 0 | K30: 0 | L30: 612 | M30: HEHL800510ABC | N30: LIDIA HERNANDEZ HUERTA | O30: BANCO MERCANTIL DEL NORTE S.A. INSTITUCION DE BANCA MULTIPLE G.F.B | P30: BMN930209927 | Q30: P01 | R30: 9abb9958-68a2-4ad6-9ee6-c8119a65b9d0 | T30: 04 | U30: 902c13fe-3094-4e4e-8606-6ef45fe613b6 | W30: 0 | X30: 1 | Y30: 0 | AA30: Pago | AC30: ACT | AD30: 0 | AE30: 0 | AF30: 0 | AJ30: 265,297.63 | AK30: 2022-07-08T12:00:00 | AL30: 1 | AM30: 265,297.63 | AN30: 265,297.63 | AO30: 0 | AP30: 902c13fe-3094-4e4e-8606-6ef45fe613b6
A31: JULIO | B31: 07 | C31: D:\RTB\USB-Verde-Plata\DeclaracionAnual-PF-2022\CaFiCon\CasoPractico-PP-ActProf-2022\XML-2022\B7BDAA88-CB56-4BB1-9C71-238727A882C6.xml | D31: 2022-07-14T16:28:43 | E31: PPD | F31: L | G31: 219 | H31: 01000 | I31: I | J31: 265,297.63 | K31: 278,284.32 | L31: 612 | M31: HEHL800510ABC | N31: LIDIA HERNANDEZ HUERTA | O31: BANCO MERCANTIL DEL NORTE S.A. INSTITUCION DE BANCA MULTIPLE G.F.B | P31: BMN930209927 | Q31: G03 | R31: b7bdaa88-cb56-4bb1-9c71-238727a882c6 | T31: 0 | U31: 0 | W31: 278,284.32 | X31: 1.000000 | Y31: 278,284.32 | AA31: HONORARIOS DE AGOSTO DEL 2022. | AB31: NO APLICA | AC31: E48 | AD31: 44,525.49 | AE31: 0.160000 | AF31: 002 | AG31: =K31*0.1 -> 27,828.43 | AH31: 0.10 | AI31: 001 | AJ31: 0 | AK31: 0 | AL31: 0 | AM31: 0 | AN31: 0 | AO31: 0 | AP31: 0 | AQ31: Servicios profesionales (honorarios)
A32: AGOSTO | B32: 08 | C32: D:\RTB\USB-Verde-Plata\DeclaracionAnual-PF-2022\CaFiCon\CasoPractico-PP-ActProf-2022\XML-2022\HAHL5702271P2-L220-C0CCA26A-96BD-4E3A-9D2D-99F1BCD8FAF5.xml | D32: 2022-08-08T14:12:43 | E32: PUE | F32: L | G32: 220 | H32: 01000 | I32: I | J32: 374,516.87 | K32: 392,850.00 | L32: 612 | M32: HEHL800510ABC | N32: LIDIA HERNANDEZ HUERTA | O32: COMERCIAL IMPORTADORA, S. DE R.L. DE C.V. | P32: CIM441020BN3 | Q32: G03 | R32: c0cca26a-96bd-4e3a-9d2d-99f1bcd8faf5 | T32: 0 | U32: 0 | W32: 392,850.00 | X32: 1.000000 | Y32: 392,850.00 | AA32: HONORARIOS DE AGOSTO 2022, | AB32: NO APLICA | AC32: E48 | AD32: 62,856.00 | AE32: 0.160000 | AF32: 002 | AG32: =K32*0.1 -> 39,285.00 | AH32: 0.10 | AI32: 001 | AJ32: 0 | AK32: 0 | AL32: 0 | AM32: 0 | AN32: 0 | AO32: 0 | AP32: 0 | AQ32: Servicios profesionales (honorarios)
A33: AGOSTO | B33: 08 | C33: D:\RTB\USB-Verde-Plata\DeclaracionAnual-PF-2022\CaFiCon\CasoPractico-PP-ActProf-2022\XML-2022\HAHL5702271P2-L221-536FB97D-792D-4034-8936-DF6932870AF8.xml | D33: 2022-08-09T11:36:16 | F33: L | G33: 221 | H33: 01000 | I33: P | J33: 0 | K33: 0 | L33: 612 | M33: HEHL800510ABC | N33: LIDIA HERNANDEZ HUERTA | O33: BANCO MERCANTIL DEL NORTE S.A. INSTITUCION DE BANCA MULTIPLE G.F.B | P33: BMN930209927 | Q33: P01 | R33: 536fb97d-792d-4034-8936-df6932870af8 | T33: 04 | U33: b7bdaa88-cb56-4bb1-9c71-238727a882c6 | W33: 0 | X33: 1 | Y33: 0 | AA33: Pago | AC33: ACT | AD33: 0 | AE33: 0 | AF33: 0 | AJ33: 265,297.63 | AK33: 2022-08-03T12:00:00 | AL33: 1 | AM33: 265,297.63 | AN33: 265,297.63 | AO33: 0 | AP33: b7bdaa88-cb56-4bb1-9c71-238727a882c6
A34: AGOSTO | B34: 08 | C34: D:\RTB\USB-Verde-Plata\DeclaracionAnual-PF-2022\CaFiCon\CasoPractico-PP-ActProf-2022\XML-2022\HAHL5702271P2-L222-441BD760-F179-4D7C-9588-3B2B7CCAEBC4.xml | D34: 2022-08-16T13:41:31 | E34: PPD | F34: L | G34: 222 | H34: 01000 | I34: I | J34: 265,297.63 | K34: 278,284.32 | L34: 612 | M34: HEHL800510ABC | N34: LIDIA HERNANDEZ HUERTA | O34: BANCO MERCANTIL DEL NORTE S.A. INSTITUCION DE BANCA MULTIPLE G.F.B | P34: BMN930209927 | Q34: G03 | R34: 441bd760-f179-4d7c-9588-3b2b7ccaebc4 | T34: 0 | U34: 0 | W34: 278,284.32 | X34: 1.000000 | Y34: 278,284.32 | AA34: HONORARIOS DE SEPTIEMBRE DEL 2022. | AB34: NO APLICA | AC34: E48 | AD34: 44,525.49 | AE34: 0.160000 | AF34: 002 | AG34: =K34*0.1 -> 27,828.43 | AH34: 0.10 | AI34: 001 | AJ34: 0 | AK34: 0 | AL34: 0 | AM34: 0 | AN34: 0 | AO34: 0 | AP34: 0 | AQ34: Servicios profesionales (honorarios)
A35: SEPTIEMBRE | B35: 09 | C35: D:\RTB\USB-Verde-Plata\DeclaracionAnual-PF-2022\CaFiCon\CasoPractico-PP-ActProf-2022\XML-2022\3DB21F49-5A5D-4F36-89BE-A05AF61595A2.xml | D35: =COMPROBANTE($C35,D$4) -> 2022-09-13T15:18:18 | E35: PPD | F35: L | G35: 225 | H35: 01000 | I35: I | J35: 265,297.63 | K35: 278,284.32 | L35: 612 | M35: HEHL800510ABC | N35: LIDIA HERNANDEZ HUERTA | O35: BANCO MERCANTIL DEL NORTE S.A. INSTITUCION DE BANCA MULTIPLE G.F.B | P35: BMN930209927 | Q35: G03 | R35: 3db21f49-5a5d-4f36-89be-a05af61595a2 | T35: 0 | U35: 0 | W35: 278,284.32 | X35: 1.000000 | Y35: 278,284.32 | AA35: HONORARIOS DE OCTUBRE DEL 2022. | AB35: NO APLICA | AC35: E48 | AD35: 44,525.49 | AE35: 0.160000 | AF35: 002 | AG35: =K35*0.1 -> 27,828.43 | AH35: 0.10 | AI35: 001 | AJ35: 0 | AK35: 0 | AL35: 0 | AM35: 0 | AN35: 0 | AO35: 0 | AP35: 0 | AQ35: Servicios profesionales (honorarios)
A36: SEPTIEMBRE | B36: 09 | C36: D:\RTB\USB-Verde-Plata\DeclaracionAnual-PF-2022\CaFiCon\CasoPractico-PP-ActProf-2022\XML-2022\9B5C294F-8A9C-4CBB-B26D-230D5F503B81.xml | D36: 2022-09-13T15:09:12 | F36: L | G36: 224 | H36: 01000 | I36: P | J36: 0 | K36: 0 | L36: 612 | M36: HEHL800510ABC | N36: LIDIA HERNANDEZ HUERTA | O36: BANCO MERCANTIL DEL NORTE S.A. INSTITUCION DE BANCA MULTIPLE G.F.B | P36: BMN930209927 | Q36: P01 | R36: 9b5c294f-8a9c-4cbb-b26d-230d5f503b81 | T36: 04 | U36: 441bd760-f179-4d7c-9588-3b2b7ccaebc4 | W36: 0 | X36: 1 | Y36: 0 | AA36: Pago | AC36: ACT | AD36: 0 | AE36: 0 | AF36: 0 | AJ36: 265,297.63 | AK36: 2022-09-07T12:00:00 | AL36: 1 | AM36: 265,297.63 | AN36: 265,297.63 | AO36: 0 | AP36: 441bd760-f179-4d7c-9588-3b2b7ccaebc4
A37: SEPTIEMBRE | B37: 09 | C37: D:\RTB\USB-Verde-Plata\DeclaracionAnual-PF-2022\CaFiCon\CasoPractico-PP-ActProf-2022\XML-2022\F16044C5-B867-4374-A6CE-1FC96BA49DBC.xml | D37: 2022-09-13T14:59:05 | E37: PUE | F37: L | G37: 223 | H37: 01000 | I37: I | J37: 374,516.87 | K37: 392,850.00 | L37: 612 | M37: HEHL800510ABC | N37: LIDIA HERNANDEZ HUERTA | O37: COMERCIAL IMPORTADORA, S. DE R.L. DE C.V. | P37: CIM441020BN3 | Q37: G03 | R37: f16044c5-b867-4374-a6ce-1fc96ba49dbc | T37: 0 | U37: 0 | W37: 392,850.00 | X37: 1.000000 | Y37: 392,850.00 | AA37: HONORARIOS DE SEPTIEMBRE 2022, | AB37: NO APLICA | AC37: E48 | AD37: 62,856.00 | AE37: 0.160000 | AF37: 002 | AG37: =K37*0.1 -> 39,285.00 | AH37: 0.10 | AI37: 001 | AJ37: 0 | AK37: 0 | AL37: 0 | AM37: 0 | AN37: 0 | AO37: 0 | AP37: 0 | AQ37: Servicios profesionales (honorarios)
A38: OCTUBRE | B38: 10 | C38: D:\RTB\USB-Verde-Plata\DeclaracionAnual-PF-2022\CaFiCon\CasoPractico-PP-ActProf-2022\XML-2022\HAHL5702271P2-L226-7DA4F487-F25D-4918-9295-5EA85C5BA953.xml | D38: 2022-10-06T11:43:41 | E38: PUE | F38: L | G38: 226 | H38: 01000 | I38: I | J38: 374,516.87 | K38: 392,850.00 | L38: 612 | M38: HEHL800510ABC | N38: LIDIA HERNANDEZ HUERTA | O38: COMERCIAL IMPORTADORA, S. DE R.L. DE C.V. | P38: CIM441020BN3 | Q38: G03 | R38: 7da4f487-f25d-4918-9295-5ea85c5ba953 | T38: 0 | U38: 0 | W38: 392,850.00 | X38: 1.000000 | Y38: 392,850.00 | AA38: HONORARIOS DE OCTUBRE 2022, | AB38: NO APLICA | AC38: E48 | AD38: 62,856.00 | AE38: 0.160000 | AF38: 002 | AG38: =K38*0.1 -> 39,285.00 | AH38: 0.10 | AI38: 001 | AJ38: 0 | AK38: 0 | AL38: 0 | AM38: 0 | AN38: 0 | AO38: 0 | AP38: 0 | AQ38: Servicios profesionales (honorarios)
A39: OCTUBRE | B39: 10 | C39: D:\RTB\USB-Verde-Plata\DeclaracionAnual-PF-2022\CaFiCon\CasoPractico-PP-ActProf-2022\XML-2022\HAHL5702271P2-L227-362232FC-64F8-42EE-AA9B-C001378FD485.xml | D39: 2022-10-13T15:40:51 | F39: L | G39: 227 | H39: 01000 | I39: P | J39: 0 | K39: 0 | L39: 612 | M39: HEHL800510ABC | N39: LIDIA HERNANDEZ HUERTA | O39: BANCO MERCANTIL DEL NORTE S.A. INSTITUCION DE BANCA MULTIPLE G.F.B | P39: BMN930209927 | Q39: P01 | R39: 362232fc-64f8-42ee-aa9b-c001378fd485 | T39: 04 | U39: 3db21f49-5a5d-4f36-89be-a05af61595a2 | W39: 0 | X39: 1 | Y39: 0 | AA39: Pago | AC39: ACT | AD39: 0 | AE39: 0 | AF39: 0 | AJ39: 265,297.63 | AK39: 2022-10-05T12:00:00 | AL39: 1 | AM39: 265,297.63 | AN39: 265,297.63 | AO39: 0 | AP39: 3db21f49-5a5d-4f36-89be-a05af61595a2
A40: OCTUBRE | B40: 10 | C40: D:\RTB\USB-Verde-Plata\DeclaracionAnual-PF-2022\CaFiCon\CasoPractico-PP-ActProf-2022\XML-2022\HAHL5702271P2-L228-35F33721-893D-41D9-80BC-42DCD4BEC745.xml | D40: 2022-10-13T15:44:45 | E40: PPD | F40: L | G40: 228 | H40: 01000 | I40: I | J40: 265,297.63 | K40: 278,284.32 | L40: 612 | M40: HEHL800510ABC | N40: LIDIA HERNANDEZ HUERTA | O40: BANCO MERCANTIL DEL NORTE S.A. INSTITUCION DE BANCA MULTIPLE G.F.B | P40: BMN930209927 | Q40: G03 | R40: 35f33721-893d-41d9-80bc-42dcd4bec745 | T40: 0 | U40: 0 | W40: 278,284.32 | X40: 1.000000 | Y40: 278,284.32 | AA40: HONORARIOS POR DERECHOS DE AUTOR DE NOVIEMBRE DEL 2022. | AB40: NO APLICA | AC40: E48 | AD40: 44,525.49 | AE40: 0.160000 | AF40: 002 | AG40: =K40*0.1 -> 27,828.43 | AH40: 0.10 | AI40: 001 | AJ40: 0 | AK40: 0 | AL40: 0 | AM40: 0 | AN40: 0 | AO40: 0 | AP40: 0 | AQ40: Servicios profesionales (honorarios)
A41: NOVIEMBRE | B41: 11 | C41: D:\RTB\USB-Verde-Plata\DeclaracionAnual-PF-2022\CaFiCon\CasoPractico-PP-ActProf-2022\XML-2022\HAHL5702271P2-L229-02C68F1A-EF44-4A89-AD3A-355C5D687613.xml | D41: 2022-11-01T10:26:54 | E41: PPD | F41: L | G41: 229 | H41: 01000 | I41: I | J41: 265,297.63 | K41: 278,284.32 | L41: 612 | M41: HEHL800510ABC | N41: LIDIA HERNANDEZ HUERTA | O41: BANCO MERCANTIL DEL NORTE S.A. INSTITUCION DE BANCA MULTIPLE G.F.B | P41: BMN930209927 | Q41: G03 | R41: 02c68f1a-ef44-4a89-ad3a-355c5d687613 | T41: 0 | U41: 0 | W41: 278,284.32 | X41: 1.000000 | Y41: 278,284.32 | AA41: HONORARIOS DE DICIEMBRE DEL 2022. | AB41: NO APLICA | AC41: E48 | AD41: 44,525.49 | AE41: 0.160000 | AF41: 002 | AG41: =K41*0.1 -> 27,828.43 | AH41: 0.10 | AI41: 001 | AJ41: 0 | AK41: 0 | AL41: 0 | AM41: 0 | AN41: 0 | AO41: 0 | AP41: 0 | AQ41: Servicios profesionales (honorarios)
A42: NOVIEMBRE | B42: 11 | C42: D:\RTB\USB-Verde-Plata\DeclaracionAnual-PF-2022\CaFiCon\CasoPractico-PP-ActProf-2022\XML-2022\HAHL5702271P2-L230-C06D0AE2-1206-4221-9FAB-38EAD78CC3D0.xml | D42: 2022-11-07T12:28:13 | E42: PUE | F42: L | G42: 230 | H42: 01000 | I42: I | J42: 374,516.87 | K42: 392,850.00 | L42: 612 | M42: HEHL800510ABC | N42: LIDIA HERNANDEZ HUERTA | O42: COMERCIAL IMPORTADORA, S. DE R.L. DE C.V. | P42: CIM441020BN3 | Q42: G03 | R42: c06d0ae2-1206-4221-9fab-38ead78cc3d0 | T42: 0 | U42: 0 | W42: 392,850.00 | X42: 1.000000 | Y42: 392,850.00 | AA42: HONORARIOS DE NOVIEMBRE 2022, | AB42: NO APLICA | AC42: E48 | AD42: 62,856.00 | AE42: 0.160000 | AF42: 002 | AG42: =K42*0.1 -> 39,285.00 | AH42: 0.10 | AI42: 001 | AJ42: 0 | AK42: 0 | AL42: 0 | AM42: 0 | AN42: 0 | AO42: 0 | AP42: 0 | AQ42: Servicios profesionales (honorarios)
A43: NOVIEMBRE | B43: 11 | C43: D:\RTB\USB-Verde-Plata\DeclaracionAnual-PF-2022\CaFiCon\CasoPractico-PP-ActProf-2022\XML-2022\HAHL5702271P2-L231-9278B3E0-E210-4200-B13F-AE92F29DEC6C.xml | D43: 2022-11-30T15:47:09 | F43: L | G43: 231 | H43: 01000 | I43: P | J43: 0 | K43: 0 | L43: 612 | M43: HEHL800510ABC | N43: LIDIA HERNANDEZ HUERTA | O43: BANCO MERCANTIL DEL NORTE S.A. INSTITUCION DE BANCA MULTIPLE G.F.B | P43: BMN930209927 | Q43: P01 | R43: 9278b3e0-e210-4200-b13f-ae92f29dec6c | T43: 04 | U43: 35f33721-893d-41d9-80bc-42dcd4bec745 | W43: 0 | X43: 1 | Y43: 0 | AA43: Pago | AC43: ACT | AD43: 0 | AE43: 0 | AF43: 0 | AJ43: 265,297.63 | AK43: 2022-11-29T12:00:00 | AL43: 1 | AM43: 265,297.63 | AN43: 265,297.63 | AO43: 0 | AP43: 35f33721-893d-41d9-80bc-42dcd4bec745
A44: DICIEMBRE | B44: 12 | C44: D:\RTB\USB-Verde-Plata\DeclaracionAnual-PF-2022\CaFiCon\CasoPractico-PP-ActProf-2022\XML-2022\HAHL5702271P2-L232-5E4BF1C6-E0FE-473E-B51D-3AC6D0FCCB53.xml | D44: 2022-12-06T12:20:53 | E44: PUE | F44: L | G44: 232 | H44: 01000 | I44: I | J44: 374,516.87 | K44: 392,850.00 | L44: 612 | M44: HEHL800510ABC | N44: LIDIA HERNANDEZ HUERTA | O44: COMERCIAL IMPORTADORA, S. DE R.L. DE C.V. | P44: CIM441020BN3 | Q44: G03 | R44: 5e4bf1c6-e0fe-473e-b51d-3ac6d0fccb53 | T44: 0 | U44: 0 | W44: 392,850.00 | X44: 1.000000 | Y44: 392,850.00 | AA44: A CUENTA DE HONORARIOS DE DICIEMBRE 2022, | AB44: NO APLICA | AC44: E48 | AD44: 62,856.00 | AE44: 0.160000 | AF44: 002 | AG44: =K44*0.1 -> 39,285.00 | AH44: 0.10 | AI44: 001 | AJ44: 0 | AK44: 0 | AL44: 0 | AM44: 0 | AN44: 0 | AO44: 0 | AP44: 0 | AQ44: Servicios profesionales (derechos de autor)
A45: DICIEMBRE | B45: 12 | C45: D:\RTB\USB-Verde-Plata\DeclaracionAnual-PF-2022\CaFiCon\CasoPractico-PP-ActProf-2022\XML-2022\HAHL5702271P2-L233-34B95E20-75F9-4DE9-B47D-BD0875FEE073.xml | D45: 2022-12-21T19:19:46 | F45: L | G45: 233 | H45: 01000 | I45: P | J45: 0 | K45: 0 | L45: 612 | M45: HEHL800510ABC | N45: LIDIA HERNANDEZ HUERTA | O45: BANCO MERCANTIL DEL NORTE S.A. INSTITUCION DE BANCA MULTIPLE G.F.B | P45: BMN930209927 | Q45: P01 | R45: 34b95e20-75f9-4de9-b47d-bd0875fee073 | T45: 04 | U45: 02c68f1a-ef44-4a89-ad3a-355c5d687613 | W45: 0 | X45: 1 | Y45: 0 | AA45: Pago | AC45: ACT | AD45: 0 | AE45: 0 | AF45: 0 | AJ45: 265,297.63 | AK45: 2022-12-16T12:00:00 | AL45: 1 | AM45: 265,297.63 | AN45: 265,297.63 | AO45: 0 | AP45: 02c68f1a-ef44-4a89-ad3a-355c5d687613
J46: =SUBTOTAL(9,J5:J45) -> 3,147,565.46 | K46: =SUBTOTAL(9,K5:K45) -> 3,301,643.20 | W46: =SUBTOTAL(9,W5:W45) -> 3,301,643.20 | AD46: =SUBTOTAL(9,AD5:AD45) -> 528,262.90 | AG46: =SUBTOTAL(9,AG5:AG45) -> 330,164.32

Sheet XML ENE-DIC-2022 respaldo
D3: COMPROBANTE | L3: EMISOR | O3: RECEPTOR | R3: UUID | T3: TIPORELACION | U3: CFDIRELACIONADO | W3: CONCEPTOS | AD3: IMPUESTOS | AG3: IMPUESTOS RETENIDOS | AJ3: CFDIPAGO | AL3: CFDIPDOCTORELACIONADO
A4: Mes | B4: Num Mes | C4: Ruta de Acceso a XML | D4: Fecha | E4: MetodoPago | F4: Serie | G4: Folio | H4: LugarExpedicion | I4: TipoDeComprobante | J4: Total | K4: SubTotal | L4: RegimenFiscal | M4: Rfc | N4: Nombre | O4: Nombre | P4: Rfc | Q4: UsoCFDI | R4: UUID | S4: COINC EGR Vs ING | T4: TipoRelacion | U4: UUID | V4: COINC ING Vs EGR | W4: Importe | X4: Cantidad | Y4: ValorUnitario | Z4: ClaveProdServ | AA4: Descripcion | AB4: Unidad | AC4: ClaveUnidad | AD4: Importe | AE4: TasaOCuota | AF4: Impuesto | AG4: Importe | AH4: TasaOCuota | AI4: Impuesto | AJ4: Monto | AK4: FechaPago | AL4: NumParcialidad | AM4: ImpSaldoAnt | AN4: ImpPagado | AO4: ImpSaldoInsoluto | AP4: IdDocumento | AQ4: Catalogo Ingresos
A5: D:\RTB\USB-Verde-Plata\LigiaHasbun\EjercicioFiscal-2023\PagosProvisionales-2023\02-23\CFDI-Ligia\Obtenidas-PaginaSAT\73EAD20B-3BFC-4FD0-96EF-734805E42F23.xml | B5: =MID(D5,6,2) ->  | D5: =COMPROBANTE($C5,D$4) -> 0 | E5: 0 | F5: 0 | G5: 0 | H5: 0 | I5: 0 | J5: =VALUE(COMPROBANTE($C5,J$4)) -> 0 | K5: 0 | L5: 612 | M5: HEHL800510ABC | N5: LIDIA HERNANDEZ HUERTA | O5: =RECEPTOR($C5,O$4) -> 0 | P5: 0 | Q5: 0 | R5: =UUID($C5,R$4) -> 0 | S5: =IFERROR(MATCH(U5,$R$5:$R$5,0)+4,"") -> 5 | T5: =TIPORELACION($C5,T$4) -> 0 | U5: =CFDIRELACIONADO($C5,U$4) -> 0 | V5: =IFERROR(MATCH(R5,$U$5:$U$5,0)+4,"") -> 5 | W5: =VALUE(CONCEPTOS($C5,W$4)) -> 0 | X5: =CONCEPTOS($C5,X$4) -> 0 | Y5: =VALUE(CONCEPTOS($C5,Y$4)) -> 0 | AA5: HONORARIOS DE ENERO DEL 2022. | AB5: =CONCEPTOS($C5,AB$4) -> 0 | AC5: 0 | AD5: =VALUE(IMPUESTOS($C5,AD$4)) -> 0 | AE5: =IMPUESTOS($C5,AE$4) -> 0 | AF5: 0 | AG5: =K5*0.1 -> 0 | AH5: 0.10 | AI5: 001 | AJ5: =VALUE(CFDIPAGO($C5,AJ$4)) -> 0 | AK5: =CFDIPAGO($C5,AK$4) -> 0 | AL5: =CFDIPDOCTORELACIONADO($C5,AL$4) -> 0 | AM5: =VALUE(CFDIPDOCTORELACIONADO($C5,AM$4)) -> 0 | AN5: 0 | AO5: 0 | AP5: =CFDIPDOCTORELACIONADO($C5,AP$4) -> 0 | AQ5: Servicios profesionales (honorarios)
A6: D:\RTB\USB-Verde-Plata\LigiaHasbun\EjercicioFiscal-2023\PagosProvisionales-2023\02-23\CFDI-Ligia\Obtenidas-PaginaSAT\735EFB13-DC8E-42DE-8E75-82AB60A6D38C.xml | D6: 0 | E6: 0 | F6: 0 | G6: 0 | H6: 0 | I6: 0 | J6: 0 | K6: 0 | L6: 612 | M6: HEHL800510ABC | N6: LIDIA HERNANDEZ HUERTA | O6: 0 | P6: 0 | Q6: 0 | R6: =UUID($C6,R$4) -> 0 | S6: 5 | T6: =TIPORELACION($C6,T$4) -> 0 | U6: =CFDIRELACIONADO($C6,U$4) -> 0 | V6: 5 | W6: =VALUE(CONCEPTOS($C6,W$4)) -> 0 | X6: =CONCEPTOS($C6,X$4) -> 0 | Y6: =VALUE(CONCEPTOS($C6,Y$4)) -> 0 | AA6: HONORARIOS DE ENERO 2022, | AB6: 0 | AC6: 0 | AD6: =VALUE(IMPUESTOS($C6,AD$4)) -> 0 | AE6: 0 | AF6: 0 | AG6: =K6*0.1 -> 0 | AH6: 0.10 | AI6: 001 | AJ6: =VALUE(CFDIPAGO($C6,AJ$4)) -> 0 | AK6: =CFDIPAGO($C6,AK$4) -> 0 | AL6: =CFDIPDOCTORELACIONADO($C6,AL$4) -> 0 | AM6: 0 | AN6: 0 | AO6: 0 | AP6: =CFDIPDOCTORELACIONADO($C6,AP$4) -> 0 | AQ6: Servicios profesionales (honorarios)
A7: D:\RTB\USB-Verde-Plata\LigiaHasbun\EjercicioFiscal-2023\PagosProvisionales-2023\02-23\CFDI-Ligia\Obtenidas-PaginaSAT\423856A2-BB4E-4219-883A-829A9AB2F6C5.xml | D7: 0 | E7: 0 | F7: 0 | G7: 0 | H7: 0 | I7: 0 | J7: 0 | K7: 0 | L7: 612 | M7: HEHL800510ABC | N7: LIDIA HERNANDEZ HUERTA | O7: 0 | P7: 0 | Q7: 0 | R7: =UUID($C7,R$4) -> 0 | S7: 5 | T7: =TIPORELACION($C7,T$4) -> 0 | U7: =CFDIRELACIONADO($C7,U$4) -> 0 | V7: 5 | W7: =VALUE(CONCEPTOS($C7,W$4)) -> 0 | X7: =CONCEPTOS($C7,X$4) -> 0 | Y7: =VALUE(CONCEPTOS($C7,Y$4)) -> 0 | AA7: HONORARIOS DE FEBRERO DEL 2022. | AB7: 0 | AC7: 0 | AD7: =VALUE(IMPUESTOS($C7,AD$4)) -> 0 | AE7: 0 | AF7: 0 | AG7: =K7*0.1 -> 0 | AH7: 0.10 | AI7: 001 | AJ7: =VALUE(CFDIPAGO($C7,AJ$4)) -> 0 | AK7: =CFDIPAGO($C7,AK$4) -> 0 | AL7: =CFDIPDOCTORELACIONADO($C7,AL$4) -> 0 | AM7: 0 | AN7: 0 | AO7: 0 | AP7: =CFDIPDOCTORELACIONADO($C7,AP$4) -> 0 | AQ7: Servicios profesionales (honorarios)
A8: D:\RTB\USB-Verde-Plata\LigiaHasbun\EjercicioFiscal-2023\PagosProvisionales-2023\02-23\CFDI-Ligia\Obtenidas-PaginaSAT\A7C49884-E6A2-4FD0-A609-A637A8D9B7A0.xml | D8: 0 | E8: 0 | F8: 0 | G8: 0 | H8: 0 | I8: 0 | J8: 0 | K8: 0 | L8: 612 | M8: HEHL800510ABC | N8: LIDIA HERNANDEZ HUERTA | O8: 0 | P8: 0 | Q8: 0 | R8: =UUID($C8,R$4) -> 0 | S8: 5 | T8: =TIPORELACION($C8,T$4) -> 0 | U8: =CFDIRELACIONADO($C8,U$4) -> 0 | V8: 5 | W8: =VALUE(CONCEPTOS($C8,W$4)) -> 0 | X8: =CONCEPTOS($C8,X$4) -> 0 | Y8: =VALUE(CONCEPTOS($C8,Y$4)) -> 0 | AA8: HONORARIOS DE FEBRERO 2022, | AB8: 0 | AC8: 0 | AD8: =VALUE(IMPUESTOS($C8,AD$4)) -> 0 | AE8: 0 | AF8: 0 | AG8: =K8*0.1 -> 0 | AH8: 0.10 | AI8: 001 | AJ8: =VALUE(CFDIPAGO($C8,AJ$4)) -> 0 | AK8: =CFDIPAGO($C8,AK$4) -> 0 | AL8: =CFDIPDOCTORELACIONADO($C8,AL$4) -> 0 | AM8: 0 | AN8: 0 | AO8: 0 | AP8: =CFDIPDOCTORELACIONADO($C8,AP$4) -> 0 | AQ8: Servicios profesionales (honorarios)
A9: D:\RTB\USB-Verde-Plata\LigiaHasbun\EjercicioFiscal-2023\PagosProvisionales-2023\02-23\CFDI-Ligia\Obtenidas-PaginaSAT\EDF447B2-FB73-4494-AE2C-DFDB73D2C39D.xml | D9: 0 | E9: 0 | F9: 0 | G9: 0 | H9: 0 | I9: 0 | J9: 0 | K9: 0 | L9: 612 | M9: HEHL800510ABC | N9: LIDIA HERNANDEZ HUERTA | O9: 0 | P9: 0 | Q9: 0 | R9: =UUID($C9,R$4) -> 0 | S9: 5 | T9: =TIPORELACION($C9,T$4) -> 0 | U9: =CFDIRELACIONADO($C9,U$4) -> 0 | V9: 5 | W9: =VALUE(CONCEPTOS($C9,W$4)) -> 0 | X9: =CONCEPTOS($C9,X$4) -> 0 | Y9: =VALUE(CONCEPTOS($C9,Y$4)) -> 0 | AA9: A CUENTA DE HONORARIOS DE MARZO DEL 2022. | AB9: 0 | AC9: 0 | AD9: =VALUE(IMPUESTOS($C9,AD$4)) -> 0 | AE9: 0 | AF9: 0 | AG9: =K9*0.1 -> 0 | AH9: 0.10 | AI9: 001 | AJ9: =VALUE(CFDIPAGO($C9,AJ$4)) -> 0 | AK9: =CFDIPAGO($C9,AK$4) -> 0 | AL9: =CFDIPDOCTORELACIONADO($C9,AL$4) -> 0 | AM9: 0 | AN9: 0 | AO9: 0 | AP9: =CFDIPDOCTORELACIONADO($C9,AP$4) -> 0 | AQ9: Servicios profesionales (honorarios)
A10: FEBRERO | D10: =COMPROBANTE($C10,D$4) -> 0 | E10: 0 | F10: 0 | G10: 0 | H10: 0 | I10: 0 | J10: =VALUE(COMPROBANTE($C10,J$4)) -> 0 | K10: 0 | L10: 612 | M10: HEHL800510ABC | N10: LIDIA HERNANDEZ HUERTA | O10: =RECEPTOR($C10,O$4) -> 0 | P10: 0 | Q10: 0 | R10: =UUID($C10,R$4) -> 0 | S10: 5 | T10: =TIPORELACION($C10,T$4) -> 0 | U10: =CFDIRELACIONADO($C10,U$4) -> 0 | V10: 5 | W10: =VALUE(CONCEPTOS($C10,W$4)) -> 0 | X10: =CONCEPTOS($C10,X$4) -> 0 | Y10: =VALUE(CONCEPTOS($C10,Y$4)) -> 0 | AA10: Pago | AB10: =CONCEPTOS($C10,AB$4) -> 0 | AC10: 0 | AD10: =VALUE(IMPUESTOS($C10,AD$4)) -> 0 | AE10: =IMPUESTOS($C10,AE$4) -> 0 | AF10: 0 | AJ10: =VALUE(CFDIPAGO($C10,AJ$4)) -> 0 | AK10: =CFDIPAGO($C10,AK$4) -> 0 | AL10: =CFDIPDOCTORELACIONADO($C10,AL$4) -> 0 | AM10: =VALUE(CFDIPDOCTORELACIONADO($C10,AM$4)) -> 0 | AN10: 0 | AO10: 0 | AP10: =CFDIPDOCTORELACIONADO($C10,AP$4) -> 0
A11: FEBRERO | D11: 0 | E11: 0 | F11: 0 | G11: 0 | H11: 0 | I11: 0 | J11: 0 | K11: 0 | L11: 612 | M11: HEHL800510ABC | N11: LIDIA HERNANDEZ HUERTA | O11: 0 | P11: 0 | Q11: 0 | R11: 0 | S11: 5 | T11: 0 | U11: 0 | V11: 5 | W11: 0 | X11: 0 | Y11: 0 | AA11: Pago | AB11: 0 | AC11: 0 | AD11: 0 | AE11: 0 | AF11: 0 | AJ11: 0 | AK11: 0 | AL11: 0 | AM11: 0 | AN11: 0 | AO11: 0 | AP11: 0
A12: MARZO | D12: 0 | E12: 0 | F12: 0 | G12: 0 | H12: 0 | I12: 0 | J12: 0 | K12: 0 | L12: 612 | M12: HEHL800510ABC | N12: LIDIA HERNANDEZ HUERTA | O12: 0 | P12: 0 | Q12: 0 | R12: 0 | S12: 5 | T12: 0 | U12: 0 | V12: 5 | W12: 0 | X12: 0 | Y12: 0 | AA12: HONORARIOS DE MARZO 2022, | AB12: 0 | AC12: 0 | AD12: 0 | AE12: 0 | AF12: 0 | AG12: =K12*0.1 -> 0 | AH12: 0.10 | AI12: 001 | AJ12: 0 | AK12: 0 | AL12: 0 | AM12: 0 | AN12: 0 | AO12: 0 | AP12: 0 | AQ12: Servicios profesionales (honorarios)
A13: MARZO | D13: 0 | E13: 0 | F13: 0 | G13: 0 | H13: 0 | I13: 0 | J13: 0 | K13: 0 | L13: 612 | M13: HEHL800510ABC | N13: LIDIA HERNANDEZ HUERTA | O13: 0 | P13: 0 | Q13: 0 | R13: 0 | S13: 5 | T13: 0 | U13: 0 | V13: 5 | W13: 0 | X13: 0 | Y13: 0 | AA13: Pago | AB13: 0 | AC13: 0 | AD13: 0 | AE13: 0 | AF13: 0 | AJ13: 0 | AK13: 0 | AL13: 0 | AM13: 0 | AN13: 0 | AO13: 0 | AP13: 0
A14: MARZO | D14: 0 | E14: 0 | F14: 0 | G14: 0 | H14: 0 | I14: 0 | J14: 0 | K14: 0 | L14: 612 | M14: HEHL800510ABC | N14: LIDIA HERNANDEZ HUERTA | O14: 0 | P14: 0 | Q14: 0 | R14: 0 | S14: 5 | T14: 0 | U14: 0 | V14: 5 | W14: 0 | X14: 0 | Y14: 0 | AA14: A CUENTA DE HONORARIOS DE ABRIL DEL 2022. | AB14: 0 | AC14: 0 | AD14: 0 | AE14: 0 | AF14: 0 | AG14: =K14*0.1 -> 0 | AH14: 0.10 | AI14: 001 | AJ14: 0 | AK14: 0 | AL14: 0 | AM14: 0 | AN14: 0 | AO14: 0 | AP14: 0 | AQ14: Servicios profesionales (honorarios)
A15: MARZO | D15: 0 | E15: 0 | F15: 0 | G15: 0 | H15: 0 | I15: 0 | J15: 0 | K15: 0 | L15: 612 | M15: HEHL800510ABC | N15: LIDIA HERNANDEZ HUERTA | O15: 0 | P15: 0 | Q15: 0 | R15: 0 | S15: 5 | T15: 0 | U15: 0 | V15: 5 | W15: 0 | X15: 0 | Y15: 0 | AA15: COMPLEMENTO DE HONORARIOS DE MARZO DEL 2022. | AB15: 0 | AC15: 0 | AD15: 0 | AE15: 0 | AF15: 0 | AG15: =K15*0.1 -> 0 | AH15: 0.10 | AI15: 001 | AJ15: 0 | AK15: 0 | AL15: 0 | AM15: 0 | AN15: 0 | AO15: 0 | AP15: 0 | AQ15: Servicios profesionales (honorarios)
A16: MARZO | D16: 0 | E16: 0 | F16: 0 | G16: 0 | H16: 0 | I16: 0 | J16: 0 | K16: 0 | L16: 612 | M16: HEHL800510ABC | N16: LIDIA HERNANDEZ HUERTA | O16: 0 | P16: 0 | Q16: 0 | R16: 0 | S16: 5 | T16: 0 | U16: 0 | V16: 5 | W16: 0 | X16: 0 | Y16: 0 | AA16: COMPLEMENTO DE HONORARIOS DE ABRIL DEL 2022. | AB16: 0 | AC16: 0 | AD16: 0 | AE16: 0 | AF16: 0 | AG16: =K16*0.1 -> 0 | AH16: 0.10 | AI16: 001 | AJ16: 0 | AK16: 0 | AL16: 0 | AM16: 0 | AN16: 0 | AO16: 0 | AP16: 0 | AQ16: Servicios profesionales (honorarios)
A17: ABRIL | D17: 0 | E17: 0 | F17: 0 | G17: 0 | H17: 0 | I17: 0 | J17: 0 | K17: 0 | L17: 612 | M17: HEHL800510ABC | N17: LIDIA HERNANDEZ HUERTA | O17: 0 | P17: 0 | Q17: 0 | R17: 0 | S17: 5 | T17: 0 | U17: 0 | V17: 5 | W17: 0 | X17: 0 | Y17: 0 | AA17: HONORARIOS DE ABRIL 2022, | AB17: 0 | AC17: 0 | AD17: 0 | AE17: 0 | AF17: 0 | AG17: =K17*0.1 -> 0 | AH17: 0.10 | AI17: 001 | AJ17: 0 | AK17: 0 | AL17: 0 | AM17: 0 | AN17: 0 | AO17: 0 | AP17: 0 | AQ17: Servicios profesionales (honorarios)
A18: ABRIL | D18: 0 | E18: 0 | F18: 0 | G18: 0 | H18: 0 | I18: 0 | J18: 0 | K18: 0 | L18: 612 | M18: HEHL800510ABC | N18: LIDIA HERNANDEZ HUERTA | O18: 0 | P18: 0 | Q18: 0 | R18: 0 | S18: 5 | T18: 0 | U18: 0 | V18: 5 | W18: 0 | X18: 0 | Y18: 0 | AA18: HONORARIOS DE ABRIL 2022, | AB18: 0 | AC18: 0 | AD18: 0 | AE18: 0 | AF18: 0 | AG18: =K18*0.1 -> 0 | AH18: 0.10 | AI18: 001 | AJ18: 0 | AK18: 0 | AL18: 0 | AM18: 0 | AN18: 0 | AO18: 0 | AP18: 0 | AQ18: Servicios profesionales (honorarios)
A19: ABRIL | D19: 0 | E19: 0 | F19: 0 | G19: 0 | H19: 0 | I19: 0 | J19: 0 | K19: 0 | L19: 612 | M19: HEHL800510ABC | N19: LIDIA HERNANDEZ HUERTA | O19: 0 | P19: 0 | Q19: 0 | R19: 0 | S19: 5 | T19: 0 | U19: 0 | V19: 5 | W19: 0 | X19: 0 | Y19: 0 | AA19: Pago | AB19: 0 | AC19: 0 | AD19: 0 | AE19: 0 | AF19: 0 | AJ19: 0 | AK19: 0 | AL19: 0 | AM19: 0 | AN19: 0 | AO19: 0 | AP19: 0
A20: ABRIL | D20: 0 | E20: 0 | F20: 0 | G20: 0 | H20: 0 | I20: 0 | J20: 0 | K20: 0 | L20: 612 | M20: HEHL800510ABC | N20: LIDIA HERNANDEZ HUERTA | O20: 0 | P20: 0 | Q20: 0 | R20: 0 | S20: 5 | T20: 0 | U20: 0 | V20: 5 | W20: 0 | X20: 0 | Y20: 0 | AA20: Pago | AB20: 0 | AC20: 0 | AD20: 0 | AE20: 0 | AF20: 0 | AJ20: 0 | AK20: 0 | AL20: 0 | AM20: 0 | AN20: 0 | AO20: 0 | AP20: 0
A21: ABRIL | D21: =COMPROBANTE($C21,D$4) -> 0 | E21: 0 | F21: 0 | G21: 0 | H21: 0 | I21: 0 | J21: 0 | K21: 0 | L21: 612 | M21: HEHL800510ABC | N21: LIDIA HERNANDEZ HUERTA | O21: 0 | P21: 0 | Q21: 0 | R21: 0 | S21: 5 | T21: 0 | U21: 0 | V21: 5 | W21: 0 | X21: 0 | Y21: 0 | AA21: HONORARIOS DE MAYO DEL 2022. | AB21: 0 | AC21: 0 | AD21: 0 | AE21: 0 | AF21: 0 | AG21: =K21*0.1 -> 0 | AH21: 0.10 | AI21: 001 | AJ21: 0 | AK21: 0 | AL21: 0 | AM21: 0 | AN21: 0 | AO21: 0 | AP21: 0 | AQ21: Servicios profesionales (honorarios)
A22: MAYO | D22: 0 | E22: 0 | F22: 0 | G22: 0 | H22: 0 | I22: 0 | J22: 0 | K22: 0 | L22: 612 | M22: HEHL800510ABC | N22: LIDIA HERNANDEZ HUERTA | O22: 0 | P22: 0 | Q22: 0 | R22: 0 | S22: 5 | T22: 0 | U22: 0 | V22: 5 | W22: 0 | X22: 0 | Y22: 0 | AA22: HONORARIOS DE MAYO 2022, | AB22: 0 | AC22: 0 | AD22: 0 | AE22: 0 | AF22: 0 | AG22: =K22*0.1 -> 0 | AH22: 0.10 | AI22: 001 | AJ22: 0 | AK22: 0 | AL22: 0 | AM22: 0 | AN22: 0 | AO22: 0 | AP22: 0 | AQ22: Servicios profesionales (honorarios)
A23: MAYO | D23: 0 | E23: 0 | F23: 0 | G23: 0 | H23: 0 | I23: 0 | J23: 0 | K23: 0 | L23: 612 | M23: HEHL800510ABC | N23: LIDIA HERNANDEZ HUERTA | O23: 0 | P23: 0 | Q23: 0 | R23: 0 | S23: 5 | T23: 0 | U23: 0 | V23: 5 | W23: 0 | X23: 0 | Y23: 0 | AA23: HONORARIOS DE JUNIO DEL 2022. | AB23: 0 | AC23: 0 | AD23: 0 | AE23: 0 | AF23: 0 | AG23: =K23*0.1 -> 0 | AH23: 0.10 | AI23: 001 | AJ23: 0 | AK23: 0 | AL23: 0 | AM23: 0 | AN23: 0 | AO23: 0 | AP23: 0 | AQ23: Servicios profesionales (honorarios)
A24: MAYO | D24: 0 | E24: 0 | F24: 0 | G24: 0 | H24: 0 | I24: 0 | J24: 0 | K24: 0 | L24: 612 | M24: HEHL800510ABC | N24: LIDIA HERNANDEZ HUERTA | O24: 0 | P24: 0 | Q24: 0 | R24: 0 | S24: 5 | T24: 0 | U24: 0 | V24: 5 | W24: 0 | X24: 0 | Y24: 0 | AA24: Pago | AB24: 0 | AC24: 0 | AD24: 0 | AE24: 0 | AF24: 0 | AJ24: 0 | AK24: 0 | AL24: 0 | AM24: 0 | AN24: 0 | AO24: 0 | AP24: 0
A25: MAYO | D25: 0 | E25: 0 | F25: 0 | G25: 0 | H25: 0 | I25: 0 | J25: =VALUE(COMPROBANTE($C25,J$4)) -> 0 | K25: 0 | L25: 612 | M25: HEHL800510ABC | N25: LIDIA HERNANDEZ HUERTA | O25: =RECEPTOR($C25,O$4) -> 0 | P25: 0 | Q25: 0 | R25: 0 | S25: 5 | T25: 0 | U25: 0 | V25: 5 | W25: 0 | X25: 0 | Y25: 0 | AA25: Pago | AB25: =CONCEPTOS($C25,AB$4) -> 0 | AC25: 0 | AD25: 0 | AE25: =IMPUESTOS($C25,AE$4) -> 0 | AF25: 0 | AJ25: 0 | AK25: 0 | AL25: 0 | AM25: =VALUE(CFDIPDOCTORELACIONADO($C25,AM$4)) -> 0 | AN25: 0 | AO25: 0 | AP25: 0
A26: JUNIO | D26: 0 | E26: 0 | F26: 0 | G26: 0 | H26: 0 | I26: 0 | J26: 0 | K26: 0 | L26: 612 | M26: HEHL800510ABC | N26: LIDIA HERNANDEZ HUERTA | O26: 0 | P26: 0 | Q26: 0 | R26: 0 | S26: 5 | T26: 0 | U26: 0 | V26: 5 | W26: 0 | X26: 0 | Y26: 0 | AA26: HONORARIOS DE JUNIO 2022, | AB26: 0 | AC26: 0 | AD26: 0 | AE26: 0 | AF26: 0 | AG26: =K26*0.1 -> 0 | AH26: 0.10 | AI26: 001 | AJ26: 0 | AK26: 0 | AL26: 0 | AM26: 0 | AN26: 0 | AO26: 0 | AP26: 0 | AQ26: Servicios profesionales (honorarios)
A27: JUNIO | D27: 0 | E27: 0 | F27: 0 | G27: 0 | H27: 0 | I27: 0 | J27: 0 | K27: 0 | L27: 612 | M27: HEHL800510ABC | N27: LIDIA HERNANDEZ HUERTA | O27: 0 | P27: 0 | Q27: 0 | R27: 0 | S27: 5 | T27: 0 | U27: 0 | V27: 5 | W27: 0 | X27: 0 | Y27: 0 | AA27: Pago | AB27: 0 | AC27: 0 | AD27: 0 | AE27: 0 | AF27: 0 | AJ27: 0 | AK27: 0 | AL27: 0 | AM27: 0 | AN27: 0 | AO27: 0 | AP27: 0
A28: JUNIO | D28: 0 | E28: 0 | F28: 0 | G28: 0 | H28: 0 | I28: 0 | J28: 0 | K28: 0 | L28: 612 | M28: HEHL800510ABC | N28: LIDIA HERNANDEZ HUERTA | O28: 0 | P28: 0 | Q28: 0 | R28: 0 | S28: 5 | T28: 0 | U28: 0 | V28: 5 | W28: 0 | X28: 0 | Y28: 0 | AA28: HONORARIOS DE JULIO DEL 2022. | AB28: 0 | AC28: 0 | AD28: 0 | AE28: 0 | AF28: 0 | AG28: =K28*0.1 -> 0 | AH28: 0.10 | AI28: 001 | AJ28: 0 | AK28: 0 | AL28: 0 | AM28: 0 | AN28: 0 | AO28: 0 | AP28: 0 | AQ28: Servicios profesionales (honorarios)
A29: JULIO | D29: 0 | E29: 0 | F29: 0 | G29: 0 | H29: 0 | I29: 0 | J29: 0 | K29: 0 | L29: 612 | M29: HEHL800510ABC | N29: LIDIA HERNANDEZ HUERTA | O29: 0 | P29: 0 | Q29: 0 | R29: 0 | S29: 5 | T29: 0 | U29: 0 | V29: 5 | W29: 0 | X29: 0 | Y29: 0 | AA29: HONORARIOS DE JULIO 2022, | AB29: 0 | AC29: 0 | AD29: 0 | AE29: 0 | AF29: 0 | AG29: =K29*0.1 -> 0 | AH29: 0.10 | AI29: 001 | AJ29: 0 | AK29: 0 | AL29: 0 | AM29: 0 | AN29: 0 | AO29: 0 | AP29: 0 | AQ29: Servicios profesionales (honorarios)
A30: JULIO | D30: 0 | E30: 0 | F30: 0 | G30: 0 | H30: 0 | I30: 0 | J30: 0 | K30: 0 | L30: 612 | M30: HEHL800510ABC | N30: LIDIA HERNANDEZ HUERTA | O30: 0 | P30: 0 | Q30: 0 | R30: 0 | S30: 5 | T30: 0 | U30: 0 | V30: 5 | W30: 0 | X30: 0 | Y30: 0 | AA30: Pago | AB30: 0 | AC30: 0 | AD30: 0 | AE30: 0 | AF30: 0 | AJ30: 0 | AK30: 0 | AL30: 0 | AM30: 0 | AN30: 0 | AO30: 0 | AP30: 0
A31: JULIO | D31: 0 | E31: 0 | F31: 0 | G31: 0 | H31: 0 | I31: 0 | J31: 0 | K31: 0 | L31: 612 | M31: HEHL800510ABC | N31: LIDIA HERNANDEZ HUERTA | O31: 0 | P31: 0 | Q31: 0 | R31: 0 | S31: 5 | T31: 0 | U31: 0 | V31: 5 | W31: 0 | X31: 0 | Y31: 0 | AA31: HONORARIOS DE AGOSTO DEL 2022. | AB31: 0 | AC31: 0 | AD31: 0 | AE31: 0 | AF31: 0 | AG31: =K31*0.1 -> 0 | AH31: 0.10 | AI31: 001 | AJ31: 0 | AK31: 0 | AL31: 0 | AM31: 0 | AN31: 0 | AO31: 0 | AP31: 0 | AQ31: Servicios profesionales (honorarios)
A32: AGOSTO | D32: 0 | E32: 0 | F32: 0 | G32: 0 | H32: 0 | I32: 0 | J32: 0 | K32: 0 | L32: 612 | M32: HEHL800510ABC | N32: LIDIA HERNANDEZ HUERTA | O32: 0 | P32: 0 | Q32: 0 | R32: 0 | S32: 5 | T32: 0 | U32: 0 | V32: 5 | W32: 0 | X32: 0 | Y32: 0 | AA32: HONORARIOS DE AGOSTO 2022, | AB32: 0 | AC32: 0 | AD32: 0 | AE32: 0 | AF32: 0 | AG32: =K32*0.1 -> 0 | AH32: 0.10 | AI32: 001 | AJ32: 0 | AK32: 0 | AL32: 0 | AM32: 0 | AN32: 0 | AO32: 0 | AP32: 0 | AQ32: Servicios profesionales (honorarios)
A33: AGOSTO | D33: 0 | E33: 0 | F33: 0 | G33: 0 | H33: 0 | I33: 0 | J33: 0 | K33: 0 | L33: 612 | M33: HEHL800510ABC | N33: LIDIA HERNANDEZ HUERTA | O33: 0 | P33: 0 | Q33: 0 | R33: 0 | S33: 5 | T33: 0 | U33: 0 | V33: 5 | W33: 0 | X33: 0 | Y33: 0 | AA33: Pago | AB33: 0 | AC33: 0 | AD33: 0 | AE33: 0 | AF33: 0 | AJ33: 0 | AK33: 0 | AL33: 0 | AM33: 0 | AN33: 0 | AO33: 0 | AP33: 0
A34: AGOSTO | D34: 0 | E34: 0 | F34: 0 | G34: 0 | H34: 0 | I34: 0 | J34: 0 | K34: 0 | L34: 612 | M34: HEHL800510ABC | N34: LIDIA HERNANDEZ HUERTA | O34: 0 | P34: 0 | Q34: 0 | R34: 0 | S34: 5 | T34: 0 | U34: 0 | V34: 5 | W34: 0 | X34: 0 | Y34: 0 | AA34: HONORARIOS DE SEPTIEMBRE DEL 2022. | AB34: 0 | AC34: 0 | AD34: 0 | AE34: 0 | AF34: 0 | AG34: =K34*0.1 -> 0 | AH34: 0.10 | AI34: 001 | AJ34: 0 | AK34: 0 | AL34: 0 | AM34: 0 | AN34: 0 | AO34: 0 | AP34: 0 | AQ34: Servicios profesionales (honorarios)
A35: SEPTIEMBRE | D35: 0 | E35: 0 | F35: 0 | G35: 0 | H35: 0 | I35: 0 | J35: 0 | K35: 0 | L35: 612 | M35: HEHL800510ABC | N35: LIDIA HERNANDEZ HUERTA | O35: 0 | P35: 0 | Q35: 0 | R35: 0 | S35: 5 | T35: 0 | U35: 0 | V35: 5 | W35: 0 | X35: 0 | Y35: 0 | AA35: HONORARIOS DE OCTUBRE DEL 2022. | AB35: 0 | AC35: 0 | AD35: 0 | AE35: 0 | AF35: 0 | AG35: =K35*0.1 -> 0 | AH35: 0.10 | AI35: 001 | AJ35: 0 | AK35: 0 | AL35: 0 | AM35: 0 | AN35: 0 | AO35: 0 | AP35: 0 | AQ35: Servicios profesionales (honorarios)
A36: SEPTIEMBRE | D36: 0 | E36: 0 | F36: 0 | G36: 0 | H36: 0 | I36: 0 | J36: 0 | K36: 0 | L36: 612 | M36: HEHL800510ABC | N36: LIDIA HERNANDEZ HUERTA | O36: 0 | P36: 0 | Q36: 0 | R36: 0 | S36: 5 | T36: 0 | U36: 0 | V36: 5 | W36: 0 | X36: 0 | Y36: 0 | AA36: Pago | AB36: 0 | AC36: 0 | AD36: 0 | AE36: 0 | AF36: 0 | AJ36: 0 | AK36: 0 | AL36: 0 | AM36: 0 | AN36: 0 | AO36: 0 | AP36: 0
A37: SEPTIEMBRE | D37: =COMPROBANTE($C37,D$4) -> 0 | E37: 0 | F37: 0 | G37: 0 | H37: 0 | I37: 0 | J37: 0 | K37: 0 | L37: 612 | M37: HEHL800510ABC | N37: LIDIA HERNANDEZ HUERTA | O37: 0 | P37: 0 | Q37: 0 | R37: 0 | S37: 5 | T37: 0 | U37: 0 | V37: 5 | W37: 0 | X37: 0 | Y37: 0 | AA37: HONORARIOS DE SEPTIEMBRE 2022, | AB37: 0 | AC37: 0 | AD37: 0 | AE37: 0 | AF37: 0 | AG37: =K37*0.1 -> 0 | AH37: 0.10 | AI37: 001 | AJ37: 0 | AK37: 0 | AL37: 0 | AM37: 0 | AN37: 0 | AO37: 0 | AP37: 0 | AQ37: Servicios profesionales (honorarios)
A38: OCTUBRE | D38: 0 | E38: 0 | F38: 0 | G38: 0 | H38: 0 | I38: 0 | J38: 0 | K38: 0 | L38: 612 | M38: HEHL800510ABC | N38: LIDIA HERNANDEZ HUERTA | O38: 0 | P38: 0 | Q38: 0 | R38: 0 | S38: 5 | T38: 0 | U38: 0 | V38: 5 | W38: 0 | X38: 0 | Y38: 0 | AA38: HONORARIOS DE OCTUBRE 2022, | AB38: 0 | AC38: 0 | AD38: 0 | AE38: 0 | AF38: 0 | AG38: =K38*0.1 -> 0 | AH38: 0.10 | AI38: 001 | AJ38: 0 | AK38: 0 | AL38: 0 | AM38: 0 | AN38: 0 | AO38: 0 | AP38: 0 | AQ38: Servicios profesionales (honorarios)
A39: OCTUBRE | D39: 0 | E39: 0 | F39: 0 | G39: 0 | H39: 0 | I39: 0 | J39: 0 | K39: 0 | L39: 612 | M39: HEHL800510ABC | N39: LIDIA HERNANDEZ HUERTA | O39: 0 | P39: 0 | Q39: 0 | R39: 0 | S39: 5 | T39: 0 | U39: 0 | V39: 5 | W39: 0 | X39: 0 | Y39: 0 | AA39: Pago | AB39: 0 | AC39: 0 | AD39: 0 | AE39: 0 | AF39: 0 | AJ39: 0 | AK39: 0 | AL39: 0 | AM39: 0 | AN39: 0 | AO39: 0 | AP39: 0
A40: OCTUBRE | D40: 0 | E40: 0 | F40: 0 | G40: 0 | H40: 0 | I40: 0 | J40: 0 | K40: 0 | L40: 612 | M40: HEHL800510ABC | N40: LIDIA HERNANDEZ HUERTA | O40: 0 | P40: 0 | Q40: 0 | R40: 0 | S40: 5 | T40: 0 | U40: 0 | V40: 5 | W40: 0 | X40: 0 | Y40: 0 | AA40: HONORARIOS POR DERECHOS DE AUTOR DE NOVIEMBRE DEL 2022. | AB40: 0 | AC40: 0 | AD40: 0 | AE40: 0 | AF40: 0 | AG40: =K40*0.1 -> 0 | AH40: 0.10 | AI40: 001 | AJ40: 0 | AK40: 0 | AL40: 0 | AM40: 0 | AN40: 0 | AO40: 0 | AP40: 0 | AQ40: Servicios profesionales (honorarios)
A41: NOVIEMBRE | D41: 0 | E41: 0 | F41: 0 | G41: 0 | H41: 0 | I41: 0 | J41: 0 | K41: 0 | L41: 612 | M41: HEHL800510ABC | N41: LIDIA HERNANDEZ HUERTA | O41: 0 | P41: 0 | Q41: 0 | R41: 0 | S41: 5 | T41: 0 | U41: 0 | V41: 5 | W41: 0 | X41: 0 | Y41: 0 | AA41: HONORARIOS DE DICIEMBRE DEL 2022. | AB41: 0 | AC41: 0 | AD41: 0 | AE41: 0 | AF41: 0 | AG41: =K41*0.1 -> 0 | AH41: 0.10 | AI41: 001 | AJ41: 0 | AK41: 0 | AL41: 0 | AM41: 0 | AN41: 0 | AO41: 0 | AP41: 0 | AQ41: Servicios profesionales (honorarios)
A42: NOVIEMBRE | D42: 0 | E42: 0 | F42: 0 | G42: 0 | H42: 0 | I42: 0 | J42: 0 | K42: 0 | L42: 612 | M42: HEHL800510ABC | N42: LIDIA HERNANDEZ HUERTA | O42: 0 | P42: 0 | Q42: 0 | R42: 0 | S42: 5 | T42: 0 | U42: 0 | V42: 5 | W42: 0 | X42: 0 | Y42: 0 | AA42: HONORARIOS DE NOVIEMBRE 2022, | AB42: 0 | AC42: 0 | AD42: 0 | AE42: 0 | AF42: 0 | AG42: =K42*0.1 -> 0 | AH42: 0.10 | AI42: 001 | AJ42: 0 | AK42: 0 | AL42: 0 | AM42: 0 | AN42: 0 | AO42: 0 | AP42: 0 | AQ42: Servicios profesionales (honorarios)
A43: NOVIEMBRE | D43: 0 | E43: 0 | F43: 0 | G43: 0 | H43: 0 | I43: 0 | J43: 0 | K43: 0 | L43: 612 | M43: HEHL800510ABC | N43: LIDIA HERNANDEZ HUERTA | O43: 0 | P43: 0 | Q43: 0 | R43: 0 | S43: 5 | T43: 0 | U43: 0 | V43: 5 | W43: 0 | X43: 0 | Y43: 0 | AA43: Pago | AB43: 0 | AC43: 0 | AD43: 0 | AE43: 0 | AF43: 0 | AJ43: 0 | AK43: 0 | AL43: 0 | AM43: 0 | AN43: 0 | AO43: 0 | AP43: 0
A44: DICIEMBRE | D44: 0 | E44: 0 | F44: 0 | G44: 0 | H44: 0 | I44: 0 | J44: 0 | K44: 0 | L44: 612 | M44: HEHL800510ABC | N44: LIDIA HERNANDEZ HUERTA | O44: 0 | P44: 0 | Q44: 0 | R44: 0 | S44: 5 | T44: 0 | U44: 0 | V44: 5 | W44: 0 | X44: 0 | Y44: 0 | AA44: A CUENTA DE HONORARIOS DE DICIEMBRE 2022, | AB44: 0 | AC44: 0 | AD44: 0 | AE44: 0 | AF44: 0 | AG44: =K44*0.1 -> 0 | AH44: 0.10 | AI44: 001 | AJ44: 0 | AK44: 0 | AL44: 0 | AM44: 0 | AN44: 0 | AO44: 0 | AP44: 0 | AQ44: Servicios profesionales (honorarios)
A45: DICIEMBRE | D45: 0 | E45: 0 | F45: 0 | G45: 0 | H45: 0 | I45: 0 | J45: 0 | K45: 0 | L45: 612 | M45: HEHL800510ABC | N45: LIDIA HERNANDEZ HUERTA | O45: 0 | P45: 0 | Q45: 0 | R45: 0 | S45: 5 | T45: 0 | U45: 0 | V45: 5 | W45: 0 | X45: 0 | Y45: 0 | AA45: Pago | AB45: 0 | AC45: 0 | AD45: 0 | AE45: 0 | AF45: 0 | AJ45: 0 | AK45: 0 | AL45: 0 | AM45: 0 | AN45: 0 | AO45: 0 | AP45: 0
J46: =SUBTOTAL(9,J5:J45) -> 0 | K46: =SUBTOTAL(9,K5:K45) -> 0 | W46: =SUBTOTAL(9,W5:W45) -> 0 | AD46: =SUBTOTAL(9,AD5:AD45) -> 0 | AG46: =SUBTOTAL(9,AG5:AG45) -> 0

Sheet CatalogoIngresos
A1: Catalogo Ingresos
A2: Ingresos propios de la actividad nacionales | B2: =SUMIF('XML ENE-DIC-2022 CASO'!$AQ$5:$AQ$45,CatalogoIngresos!A2,'XML ENE-DIC-2022 CASO'!$K$5:$K$45) -> 0
A3: Ingresos propios de la actividad extranjeros | B3: =SUMIF('XML ENE-DIC-2022 CASO'!$AQ$5:$AQ$45,CatalogoIngresos!A3,'XML ENE-DIC-2022 CASO'!$K$5:$K$45) -> 0
A4: Ingresos exclusivos por autotransporte de carga federal | B4: =SUMIF('XML ENE-DIC-2022 CASO'!$AQ$5:$AQ$45,CatalogoIngresos!A4,'XML ENE-DIC-2022 CASO'!$K$5:$K$45) -> 0
A5: Ganancia en la enajenación de acciones o por reembolso de capital | B5: =SUMIF('XML ENE-DIC-2022 CASO'!$AQ$5:$AQ$45,CatalogoIngresos!A5,'XML ENE-DIC-2022 CASO'!$K$5:$K$45) -> 0
A6: Ganancia en la enajenación de terrenos y activo fijo | B6: =SUMIF('XML ENE-DIC-2022 CASO'!$AQ$5:$AQ$45,CatalogoIngresos!A6,'XML ENE-DIC-2022 CASO'!$K$5:$K$45) -> 0
A7: Anticipo de clientes | B7: =SUMIF('XML ENE-DIC-2022 CASO'!$AQ$5:$AQ$45,CatalogoIngresos!A7,'XML ENE-DIC-2022 CASO'!$K$5:$K$45) -> 0
A8: Intereses cobrados sin ajuste alguno y ganancia cambiaria relacionados con actividades propias | B8: =SUMIF('XML ENE-DIC-2022 CASO'!$AQ$5:$AQ$45,CatalogoIngresos!A8,'XML ENE-DIC-2022 CASO'!$K$5:$K$45) -> 0
A9: Servicios de transporte terrestre de pasajeros y de entrega de bienes | B9: =SUMIF('XML ENE-DIC-2022 CASO'!$AQ$5:$AQ$45,CatalogoIngresos!A9,'XML ENE-DIC-2022 CASO'!$K$5:$K$45) -> 0
A10: Servicios de hospedaje | B10: =SUMIF('XML ENE-DIC-2022 CASO'!$AQ$5:$AQ$45,CatalogoIngresos!A10,'XML ENE-DIC-2022 CASO'!$K$5:$K$45) -> 0
A11: Enajenación de bienes y prestación de servicios | B11: =SUMIF('XML ENE-DIC-2022 CASO'!$AQ$5:$AQ$45,CatalogoIngresos!A11,'XML ENE-DIC-2022 CASO'!$K$5:$K$45) -> 0
A12: Servicios profesionales (honorarios) | B12: =SUMIF('XML ENE-DIC-2022 CASO'!$AQ$5:$AQ$45,CatalogoIngresos!A12,'XML ENE-DIC-2022 CASO'!$K$5:$K$45) -> 7,756,443.20
A13: Servicios profesionales (derechos de autor) | B13: =SUMIF('XML ENE-DIC-2022 CASO'!$AQ$5:$AQ$45,CatalogoIngresos!A13,'XML ENE-DIC-2022 CASO'!$K$5:$K$45) -> 652,250.00
B14: =SUM(B2:B13) -> 8,408,693.20

Sheet TARIFAS 2022
B3: Límite inferior | C3: Límite superior | D3: Cuota fija | E3: Por ciento para aplicarse sobre el excedente del límite inferior
B5: $ | C5: $ | D5: $ | E5: %
B6: 0.01 | C6: 6,942.20 | D6: 0 | E6: 0.0192 | G6: 0.01 | H6: 6,942.20 | I6: 0 | J6: 1.92
B7: 6,942.21 | C7: 58,922.16 | D7: 133.28 | E7: 0.0640 | G7: 6,942.21 | H7: 58,922.16 | I7: 133.28 | J7: 6.4
B8: 58,922.17 | C8: 103,550.44 | D8: 3,460.01 | E8: 0.1088 | G8: 58,922.17 | H8: 103,550.44 | I8: 3,460.01 | J8: 10.88
B9: 103,550.45 | C9: 120,372.83 | D9: 8,315.57 | E9: 0.1600 | G9: 103,550.45 | H9: 120,372.83 | I9: 8,315.57 | J9: 16
B10: 120,372.84 | C10: 144,119.23 | D10: 11,007.14 | E10: 0.1792 | G10: 120,372.84 | H10: 144,119.23 | I10: 11,007.14 | J10: 17.92
B11: 144,119.24 | C11: 290,667.75 | D11: 15,262.49 | E11: 0.2136 | G11: 144,119.24 | H11: 290,667.75 | I11: 15,262.49 | J11: 21.36
B12: 290,667.76 | C12: 458,132.29 | D12: 46,565.26 | E12: 0.2352 | G12: 290,667.76 | H12: 458,132.29 | I12: 46,565.26 | J12: 23.52
B13: 458,132.30 | C13: 874,650.00 | D13: 85,952.92 | E13: 0.3000 | G13: 458,132.30 | H13: 874,650.00 | I13: 85,952.92 | J13: 30
B14: 874,650.01 | C14: 1,166,200.00 | D14: 210,908.23 | E14: 0.3200 | G14: 874,650.01 | H14: 1,166,200.00 | I14: 210,908.23 | J14: 32
B15: 1,166,200.01 | C15: 3,498,600.00 | D15: 304,204.21 | E15: 0.3400 | G15: 1,166,200.01 | H15: 3,498,600.00 | I15: 304,204.21 | J15: 34
B16: 3,498,600.01 | C16: En adelante | D16: 1,097,220.21 | E16: 0.3500 | G16: 3,498,600.01 | H16: En adelante | I16: 1,097,220.21 | J16: 35
B19: Tarifa para el cáculo de los pagos provisionales del ejercicio 2022
B21: Tarifa: pago provisional de enero 2022 | G21: Tarifa: pago provisional de febrero 2022
B22: Límite inferior | C22: Límite superior | D22: Cuota fija | E22: Por ciento para aplicarse sobre el excedente del límite inferior | G22: Límite inferior | H22: Límite superior | I22: Cuota fija | J22: Por ciento para aplicarse sobre el excedente del límite inferior
B24: $ | C24: $ | D24: $ | E24: % | G24: $ | H24: $ | I24: $ | J24: %
B25: 0.01 | C25: 578.52 | D25: 0 | E25: 0.0192 | G25: 0.01 | H25: 1157.04 | I25: 0 | J25: 0.0192
B26: 578.53 | C26: 4,910.18 | D26: 11.11 | E26: 0.0640 | G26: 1157.05 | H26: 9,820.36 | I26: 22.22 | J26: 0.0640
B27: 4,910.19 | C27: 8,629.20 | D27: 288.33 | E27: 0.1088 | G27: 9,820.37 | H27: 17,258.40 | I27: 576.66 | J27: 0.1088
B28: 8,629.21 | C28: 10,031.07 | D28: 692.96 | E28: 0.1600 | G28: 17,258.41 | H28: 20,062.14 | I28: 1,385.92 | J28: 0.1600
B29: 10,031.08 | C29: 12,009.94 | D29: 917.26 | E29: 0.1792 | G29: 20,062.15 | H29: 24,019.88 | I29: 1,834.52 | J29: 0.1792
B30: 12,009.95 | C30: 24,222.31 | D30: 1,271.87 | E30: 0.2136 | G30: 24,019.89 | H30: 48,444.62 | I30: 2,543.74 | J30: 0.2136
B31: 24,222.32 | C31: 38,177.69 | D31: 3,880.44 | E31: 0.2352 | G31: 48,444.63 | H31: 76,355.38 | I31: 7,760.88 | J31: 0.2352
B32: 38,177.70 | C32: 72,887.50 | D32: 7,162.74 | E32: 0.3000 | G32: 76,355.39 | H32: 145,775.00 | I32: 14,325.48 | J32: 0.3000
B33: 72,887.51 | C33: 97,183.33 | D33: 17,575.69 | E33: 0.3200 | G33: 145,775.01 | H33: 194,366.66 | I33: 35,151.38 | J33: 0.3200
B34: 97,183.34 | C34: 291,550.00 | D34: 25,350.35 | E34: 0.3400 | G34: 194,366.67 | H34: 583,100.00 | I34: 50,700.70 | J34: 0.3400
B35: 291,550.01 | C35: En adelante | D35: 91,435.02 | E35: 0.3500 | G35: 583,100.01 | H35: En adelante | I35: 182,870.04 | J35: 0.3500
B38: Tarifa: pago provisional de marzo 2022 | G38: Tarifa: pago provisional de abril 2022
B39: Límite inferior | C39: Límite superior | D39: Cuota fija | E39: Por ciento para aplicarse sobre el excedente del límite inferior | G39: Límite inferior | H39: Límite superior | I39: Cuota fija | J39: Por ciento para aplicarse sobre el excedente del límite inferior
B41: $ | C41: $ | D41: $ | E41: % | G41: $ | H41: $ | I41: $ | J41: %
B42: 0.01 | C42: 1,735.56 | D42: 0 | E42: 0.0192 | G42: 0.01 | H42: 2314.08 | I42: 0 | J42: 0.0192
B43: 1,735.57 | C43: 14,730.54 | D43: 33.33 | E43: 0.0640 | G43: 2,314.09 | H43: 19,640.72 | I43: 44.44 | J43: 0.0640
B44: 14,730.55 | C44: 25,887.60 | D44: 864.99 | E44: 0.1088 | G44: 19,640.73 | H44: 34,516.80 | I44: 1153.32 | J44: 0.1088
B45: 25,887.61 | C45: 30,093.21 | D45: 2,078.88 | E45: 0.1600 | G45: 34,516.81 | H45: 40,124.28 | I45: 2,771.84 | J45: 0.1600
B46: 30,093.22 | C46: 36,029.82 | D46: 2,751.78 | E46: 0.1792 | G46: 40,124.29 | H46: 48,039.76 | I46: 3,669.04 | J46: 0.1792
B47: 36,029.83 | C47: 72,666.93 | D47: 3,815.61 | E47: 0.2136 | G47: 48,039.77 | H47: 96,889.24 | I47: 5,087.48 | J47: 0.2136
B48: 72,666.94 | C48: 114,533.07 | D48: 11,641.32 | E48: 0.2352 | G48: 96,889.25 | H48: 152,710.76 | I48: 15,521.76 | J48: 0.2352
B49: 114,533.08 | C49: 218,662.50 | D49: 21,488.22 | E49: 0.3000 | G49: 152,710.77 | H49: 291,550.00 | I49: 28,650.96 | J49: 0.3000
B50: 218,662.51 | C50: 291,549.99 | D50: 52,727.07 | E50: 0.3200 | G50: 291,550.01 | H50: 388,733.32 | I50: 70,302.76 | J50: 0.3200
B51: 291,550.00 | C51: 874,650.00 | D51: 76,051.05 | E51: 0.3400 | G51: 388,733.33 | H51: 1,166,200.00 | I51: 101,401.40 | J51: 0.3400
B52: 874,650.01 | C52: En adelante | D52: 274,305.06 | E52: 0.3500 | G52: 1,166,200.01 | H52: En adelante | I52: 365,740.08 | J52: 0.3500
B55: Tarifa: pago provisional de mayo 2022 | G55: Tarifa: pago provisional de junio 2022
B56: Límite inferior | C56: Límite superior | D56: Cuota fija | E56: Por ciento para aplicarse sobre el excedente del límite inferior | G56: Límite inferior | H56: Límite superior | I56: Cuota fija | J56: Por ciento para aplicarse sobre el excedente del límite inferior
B58: $ | C58: $ | D58: $ | E58: % | G58: $ | H58: $ | I58: $ | J58: %
B59: 0.01 | C59: 2,892.60 | D59: 0 | E59: 0.0192 | G59: 0.01 | H59: 3,471.12 | I59: 0 | J59: 0.0192
B60: 2,892.61 | C60: 24,550.90 | D60: 55.55 | E60: 0.0640 | G60: 3,471.13 | H60: 29,461.08 | I60: 66.66 | J60: 0.0640
B61: 24,550.91 | C61: 43,146.00 | D61: 1,441.65 | E61: 0.1088 | G61: 29,461.09 | H61: 51,775.20 | I61: 1,729.98 | J61: 0.1088
B62: 43,146.01 | C62: 50,155.35 | D62: 3,464.80 | E62: 0.1600 | G62: 51,775.21 | H62: 60,186.42 | I62: 4,157.76 | J62: 0.1600
B63: 50,155.36 | C63: 60,049.70 | D63: 4,586.30 | E63: 0.1792 | G63: 60,186.43 | H63: 72,059.64 | I63: 5,503.56 | J63: 0.1792
B64: 60,049.71 | C64: 121,111.55 | D64: 6,359.35 | E64: 0.2136 | G64: 72,059.65 | H64: 145,333.86 | I64: 7,631.22 | J64: 0.2136
B65: 121,111.56 | C65: 190,888.45 | D65: 19,402.20 | E65: 0.2352 | G65: 145,333.87 | H65: 229,066.14 | I65: 23,282.64 | J65: 0.2352
B66: 190,888.46 | C66: 364,437.50 | D66: 35,813.70 | E66: 0.3000 | G66: 229,066.15 | H66: 437,325.00 | I66: 42,976.44 | J66: 0.3000
B67: 364,437.51 | C67: 485,916.65 | D67: 87,878.45 | E67: 0.3200 | G67: 437,325.01 | H67: 583,099.98 | I67: 105,454.14 | J67: 0.3200
B68: 485,916.66 | C68: 1,457,750.00 | D68: 126,751.75 | E68: 0.3400 | G68: 583,099.99 | H68: 1,749,300.00 | I68: 152,102.10 | J68: 0.3400
B69: 1,457,750.01 | C69: En adelante | D69: 457,175.10 | E69: 0.3500 | G69: 1,749,300.01 | H69: En adelante | I69: 548,610.12 | J69: 0.3500
B72: Tarifa: pago provisional de julio 2022 | G72: Tarifa: pago provisional de agosto 2022
B73: Límite inferior | C73: Límite superior | D73: Cuota fija | E73: Por ciento para aplicarse sobre el excedente del límite inferior | G73: Límite inferior | H73: Límite superior | I73: Cuota fija | J73: Por ciento para aplicarse sobre el excedente del límite inferior
B75: $ | C75: $ | D75: $ | E75: % | G75: $ | H75: $ | I75: $ | J75: %
B76: 0.01 | C76: 4,049.64 | D76: 0 | E76: 0.0192 | G76: 0.01 | H76: 4,628.16 | I76: 0 | J76: 0.0192
B77: 4,049.65 | C77: 34,371.26 | D77: 77.77 | E77: 0.0640 | G77: 4,628.17 | H77: 39,281.44 | I77: 88.88 | J77: 0.0640
B78: 34,371.27 | C78: 60,404.40 | D78: 2,018.31 | E78: 0.1088 | G78: 39,281.45 | H78: 69,033.60 | I78: 2,306.64 | J78: 0.1088
B79: 60,404.41 | C79: 70,217.49 | D79: 4,850.72 | E79: 0.1600 | G79: 69,033.61 | H79: 80,248.56 | I79: 5,543.68 | J79: 0.1600
B80: 70,217.50 | C80: 84,069.58 | D80: 6,420.82 | E80: 0.1792 | G80: 80,248.57 | H80: 96,079.52 | I80: 7,338.08 | J80: 0.1792
B81: 84,069.59 | C81: 169,556.17 | D81: 8,903.09 | E81: 0.2136 | G81: 96,079.53 | H81: 193,778.48 | I81: 10,174.96 | J81: 0.2136
B82: 169,556.18 | C82: 267,243.83 | D82: 27,163.08 | E82: 0.2352 | G82: 193,778.49 | H82: 305,421.52 | I82: 31,043.52 | J82: 0.2352
B83: 267,243.84 | C83: 510,212.50 | D83: 50,139.18 | E83: 0.3000 | G83: 305,421.53 | H83: 583,100.00 | I83: 57,301.92 | J83: 0.3000
B84: 510,212.51 | C84: 680,283.31 | D84: 123,029.83 | E84: 0.3200 | G84: 583,100.01 | H84: 777,466.64 | I84: 140,605.52 | J84: 0.3200
B85: 680,283.32 | C85: 2,040,850.00 | D85: 177,452.45 | E85: 0.3400 | G85: 777,466.65 | H85: 2,332,400.00 | I85: 202,802.80 | J85: 0.3400
B86: 2,040,850.01 | C86: En adelante | D86: 640,045.14 | E86: 0.3500 | G86: 2,332,400.01 | H86: En adelante | I86: 731,480.16 | J86: 0.3500
B89: Tarifa: pago provisional de septiembre 2022 | G89: Tarifa: pago provisional de octubre de 2022
B90: Límite inferior | C90: Límite superior | D90: Cuota fija | E90: Por ciento para aplicarse sobre el excedente del límite inferior | G90: Límite inferior | H90: Límite superior | I90: Cuota fija | J90: Por ciento para aplicarse sobre el excedente del límite inferior
B92: $ | C92: $ | D92: $ | E92: % | G92: $ | H92: $ | I92: $ | J92: %
B93: 0.01 | C93: 5,206.68 | D93: 0 | E93: 0.0192 | G93: 0.01 | H93: 5,785.20 | I93: 0 | J93: 0.0192
B94: 5,206.69 | C94: 44,191.62 | D94: 99.99 | E94: 0.0640 | G94: 5,785.21 | H94: 49,101.80 | I94: 111.1 | J94: 0.0640
B95: 44,191.63 | C95: 77,662.80 | D95: 2,594.97 | E95: 0.1088 | G95: 49,101.81 | H95: 86,292.00 | I95: 2,883.30 | J95: 0.1088
B96: 77,662.81 | C96: 90,279.63 | D96: 6,236.64 | E96: 0.1600 | G96: 86,292.01 | H96: 100,310.70 | I96: 6,929.60 | J96: 0.1600
B97: 90,279.64 | C97: 108,089.46 | D97: 8,255.34 | E97: 0.1792 | G97: 100,310.71 | H97: 120,099.40 | I97: 9,172.60 | J97: 0.1792
B98: 108,089.47 | C98: 218,000.79 | D98: 11,446.83 | E98: 0.2136 | G98: 120,099.41 | H98: 242,223.10 | I98: 12,718.70 | J98: 0.2136
B99: 218,000.80 | C99: 343,599.21 | D99: 34,923.96 | E99: 0.2352 | G99: 242,223.11 | H99: 381,776.90 | I99: 38,804.40 | J99: 0.2352
B100: 343,599.22 | C100: 655,987.50 | D100: 64,464.66 | E100: 0.3000 | G100: 381,776.91 | H100: 728,875.00 | I100: 71,627.40 | J100: 0.3000
B101: 655,987.51 | C101: 874,649.97 | D101: 158,181.21 | E101: 0.3200 | G101: 728,875.01 | H101: 971,833.30 | I101: 175,756.90 | J101: 0.3200
B102: 874,649.98 | C102: 2,623,950.00 | D102: 228,153.15 | E102: 0.3400 | G102: 971,833.31 | H102: 2,915,500.00 | I102: 253,503.50 | J102: 0.3400
B103: 2,623,950.01 | C103: En adelante | D103: 822,915.18 | E103: 0.3500 | G103: 2,915,500.01 | H103: En adelante | I103: 914,350.20 | J103: 0.3500
B106: Tarifa: pago provisional de noviembre 2022 | G106: Tarifa: pago provisional de diciembre 2022
B107: Límite inferior | C107: Límite superior | D107: Cuota fija | E107: Por ciento para aplicarse sobre el excedente del límite inferior | G107: Límite inferior | H107: Límite superior | I107: Cuota fija | J107: Por ciento para aplicarse sobre el excedente del límite inferior
B109: $ | C109: $ | D109: $ | E109: % | G109: $ | H109: $ | I109: $ | J109: %
B110: 0.01 | C110: 6,363.72 | D110: 0 | E110: 0.0192 | G110: 0.01 | H110: 6,942.24 | I110: 0 | J110: 0.0192
B111: 6,363.73 | C111: 54,011.98 | D111: 122.21 | E111: 0.0640 | G111: 6,942.25 | H111: 58,922.16 | I111: 133.32 | J111: 0.0640
B112: 54,011.99 | C112: 94,921.20 | D112: 3,171.63 | E112: 0.1088 | G112: 58,922.17 | H112: 103,550.40 | I112: 3,459.96 | J112: 0.1088
B113: 94,921.21 | C113: 110,341.77 | D113: 7,622.56 | E113: 0.1600 | G113: 103,550.41 | H113: 120,372.84 | I113: 8,315.52 | J113: 0.1600
B114: 110,341.78 | C114: 132,109.34 | D114: 10,089.86 | E114: 0.1792 | G114: 120,372.85 | H114: 144,119.28 | I114: 11,007.12 | J114: 0.1792
B115: 132,109.35 | C115: 266,445.41 | D115: 13,990.57 | E115: 0.2136 | G115: 144,119.29 | H115: 290,667.72 | I115: 15,262.44 | J115: 0.2136
B116: 266,445.42 | C116: 419,954.59 | D116: 42,684.84 | E116: 0.2352 | G116: 290,667.73 | H116: 458,132.28 | I116: 46,565.28 | J116: 0.2352
B117: 419,954.60 | C117: 801,762.50 | D117: 78,790.14 | E117: 0.3000 | G117: 458,132.29 | H117: 874,650.00 | I117: 85,952.88 | J117: 0.3000
B118: 801,762.51 | C118: 1,069,016.63 | D118: 193,332.59 | E118: 0.3200 | G118: 874,650.01 | H118: 1,166,199.96 | I118: 210,908.28 | J118: 0.3200
B119: 1,069,016.64 | C119: 3,207,050.00 | D119: 278,853.85 | E119: 0.3400 | G119: 1,166,199.97 | H119: 3,498,600.00 | I119: 304,204.20 | J119: 0.3400
B120: 3,207,050.01 | C120: En adelante | D120: 1,005,785.22 | E120: 0.3500 | G120: 3,498,600.01 | H120: En adelante | I120: 1,097,220.24 | J120: 0.3500
